Workbook

Sheet Title
D3: Auto Operating Cost Calculator (Draft for Comments Only)
D7: Transportation Analysis Section
D8: 2018
D12: For questions and comments, please contact:
D14: Nesamani S Kalandiyur
D15: Manager, Transportation Analysis Section
D16: California Air Resources Board
D17: Email: nesamani.kalandiyur@arb.ca.gov
D18: Ph: 916-324-0466

Sheet Readme
A1: Auto Operating Cost Calculator (Draft For Comments Only)
A3: Step 1: On the "Calc" tab, select an MPO and Calendar Year from the drop-down lists. MPO drop down list includes all 18 MPOs and calendar year ranges from 2000 to 2050. To avoid tool malfunction, users should not type in the MPO name or Calendar year.
A5: The tool will automatically update the default fuel price data for each fuel, using data from the 2018 California Energy Commission (CEC) report "Revised Transportation Energy Demand Forecast".
A6: The tool will automatically update the default non-fuel cost data (maintenance, repair and tire cost) from the 2017 American Automobile Association report, "Your Driving Cost: How much are you really paying to drive?".
A7: Custom Option: If an MPO has fuel price or non-fuel cost data more appropriate for their region, the default data in this tool can be changed.
A9: Step 2: On the "Calc" tab, enter the light-duty vehicle (LDV) Vehicle Miles Traveled (VMT) by fuel type from travel demand model for a given MPO. If user do not provide this information tool will use the default VMT from EMFAC2017.
A11: Output: Aggregate Auto Operating Cost for the MPO and Calendar Year selected are shown in cell labeled "Auto Operating Cost (cents/mile)".
A13: Step 3: To start a new model run, on the "Calc" tab, click the "Clear Input" button, and all custom input info will be cleared and user can start a new run.
A15: Note 1: On the "Calc" tab, once a specific run is done and user wants to save the information, click the "Record This Run" button, and all inputs and the corresponding results of this run will be recorderd in the "Report Sheet" to be submitted to CARB for review.
A17: Note 2: The "Report Sheet" can store up to five records. To clear all stored records, click the "Clear All Record" button on the "Calc" tab.

Sheet Calc
CS1: Inflation Rate: | CT1: 1.0169
B2: cy | C2: gai | D2: veh_class_id | E2: fuel_id | F2: pop | G2: cpop | H2: epop | I2: vmt | J2: cvmt | K2: evmt | L2: trip | M2: ctrip | N2: etrip | O2: cfuel (Data is in 1,000's) | P2: efuel (Data is in 1,000's) | W2: MPO_Name | X2: CalYear | Y2: FUELType9 | AC2: Auto Operation Cost Calculator (Draft For Comments Only) | BO2: CEC Fuel Cost Data, $2017 ($/GGE) (See Notes Below) | BU2: AAA Calendar Year 2017 Data* | CS2: VMT-Weighted AAA Maintenance Costs Adjusted for Inflation
B3: 2000 | C3: AMBAG | D3: LDA | E3: DIESEL | F3: 1701.857265 | G3: 1701.857265 | H3: 0 | I3: 46909.68207 | J3: 46909.68207 | K3: 0 | L3: 7136.970756 | M3: 7136.970756 | N3: 0 | O3: 1.746158295 | P3: 0 | W3: AMBAG | X3: 2000 | Y3: GAS | BO3: CY | BP3: Gasoline ($/GGE) | BQ3: Diesel ($/GGE) | BR3: Hydrogen ($/GGE) | BS3: Electricity ($/GGE) | BU3: MPO | BV3: Pop-Weighted AAA Maintenance** Costs | BW3: Pop-Weighted AAA License*** Costs ($) | BX3: Pop-Weighted AAA Insurance Costs ($) | BY3: Pop-Weighted AAA Depreciation Costs ($) | BZ3: Pop-Weighted AAA Finance Costs ($) | CC3: AAA Driving Costs (2017)* | CS3: MPO | CT3: CY | CU3: Gas, Diesel, and Hydrogen | CV3: Electric (same for all MPOs) | CW3: Hybrid (same for all MPOs)
B4: 2000 | C4: AMBAG | D4: LDA | E4: DIESEL | F4: 197.7458635 | G4: 197.7458635 | H4: 0 | I4: 6332.634328 | J4: 6332.634328 | K4: 0 | L4: 847.4131282 | M4: 847.4131282 | N4: 0 | O4: 0.2056016609 | P4: 0 | W4: BCAG | X4: 2001 | Y4: DIESEL | AE4: Select MPO | AH4: AMBAG | BO4: 2000 | BP4: 2.380609899 | BQ4: 2.322275234 | BR4: 12.84948052 | BS4: 4.438700548 | BU4: AMBAG | BV4: 7.935138819 | BW4: 721.7362432 | BX4: 1188.970898 | BY4: 3293.231793 | BZ4: 674.3346956 | CC4: Operating Costs | CD4: Small Sedan | CE4: Medium Sedan | CF4: Large Sedan | CG4: Small SUV (FWD) | CH4: Medium SUV (4WD) | CI4: Minivan | CJ4: 1/2 Ton Pickup (4WD) | CK4: Hybrid Vehicle | CL4: Electric Vehicle | CN4: Sedan Average | CO4: Medium SUV and Minivan Average | CS4: AMBAG | CT4: 2000 | CU4: 7.642936085 | CV4: 6.55 | CW4: 6.99
B5: 2000 | C5: AMBAG | D5: LDA | E5: DIESEL | F5: 986.3508567 | G5: 986.3508567 | H5: 0 | I5: 26338.97652 | J5: 26338.97652 | K5: 0 | L5: 4136.111419 | M5: 4136.111419 | N5: 0 | O5: 0.9253242255 | P5: 0 | W5: COFCG | X5: 2002 | Y5: ELECTRIC | AE5: Select Calendar Year | AH5: 2025 | BO5: 2001 | BP5: 2.277361134 | BQ5: 2.095389523 | BR5: 13.07036977 | BS5: 4.515004118 | BU5: BCAG | BV5: 7.952906473 | BW5: 729.5042951 | BX5: 1184.182622 | BY5: 3312.808613 | BZ5: 682.4920292 | CC5: Fuel (cents/mile) | CD5: 7.18 | CE5: 9.03 | CF5: 11.14 | CG5: 8.68 | CH5: 11.76 | CI5: 10.95 | CJ5: 13.88 | CK5: 5.59 | CL5: 3.68 | CN5: 9.116666667 | CO5: 11.355 | CS5: AMBAG | CT5: 2001 | CU5: 8.02449865 | CV5: 6.55 | CW5: 6.99
B6: 2000 | C6: AMBAG | D6: LDT1 | E6: DIESEL | F6: 144.7082574 | G6: 144.7082574 | H6: 0 | I6: 4249.242319 | J6: 4249.242319 | K6: 0 | L6: 607.5403144 | M6: 607.5403144 | N6: 0 | O6: 0.188292282 | P6: 0 | W6: KCAG | X6: 2003 | Y6: HYDROGEN | BO6: 2002 | BP6: 2.087783143 | BQ6: 1.939324509 | BR6: 13.29505622 | BS6: 4.592619385 | BU6: COFCG | BV6: 7.936531145 | BW6: 722.7963454 | BX6: 1191.980054 | BY6: 3283.418983 | BZ6: 674.802793 | CC6: Maintenance, Repair, and Tires (MRT) (cents/mile) (Based on 15,000 Miles) | CD6: 6.83 | CE6: 7.94 | CF6: 8.44 | CG6: 8.09 | CH6: 8.27 | CI6: 7.81 | CJ6: 8.33 | CK6: 6.99 | CL6: 6.55 | CN6: 7.736666667 | CO6: 8.04 | CS6: AMBAG | CT6: 2002 | CU6: 8.090974922 | CV6: 6.55 | CW6: 6.99
B7: 2000 | C7: AMBAG | D7: LDT1 | E7: DIESEL | F7: 11.70749258 | G7: 11.70749258 | H7: 0 | I7: 343.0822805 | J7: 343.0822805 | K7: 0 | L7: 49.37095512 | M7: 49.37095512 | N7: 0 | O7: 0.01350907336 | P7: 0 | W7: KCOG | X7: 2004 | Y7: PHEV | AC7: GASOLINE | AF7: DIESEL | AI7: ELECTRIC | AL7: HYDROGEN | AO7: PHEV | AW7: PHEV Gas | AX7: PHEV Electric | BB7: PHEV** | BE7: PHEV Gas | BF7: PHEV Electric | BJ7: PHEV** | BO7: 2003 | BP7: 2.462674368 | BQ7: 2.172870835 | BR7: 13.52360515 | BS7: 4.6715689 | BU7: KCAG | BV7: 7.935607219 | BW7: 723.8114852 | BX7: 1195.762203 | BY7: 3275.283593 | BZ7: 675.1976597 | CC7: License, Registration, Taxes (LRT) ($, Annual) | CD7: 454 | CE7: 639 | CF7: 757 | CG7: 607 | CH7: 831 | CI7: 726 | CJ7: 984 | CK7: 667 | CL7: 656 | CN7: 616.6666667 | CO7: 778.5 | CS7: AMBAG | CT7: 2003 | CU7: 7.907778064 | CV7: 6.55 | CW7: 6.99
B8: 2000 | C8: AMBAG | D8: LDT1 | E8: DIESEL | F8: 74.76932221 | G8: 74.76932221 | H8: 0 | I8: 2078.91644 | J8: 2078.91644 | K8: 0 | L8: 314.8000161 | M8: 314.8000161 | N8: 0 | O8: 0.08827639595 | P8: 0 | W8: MCAG | X8: 2005 | AC8: Data Source | AD8: Value | AF8: Data Source | AG8: Value | AI8: Data Source | AJ8: Value | AL8: Data Source | AM8: Value | AO8: Data Source | AP8: Value | AW8: =V33 -> 0 | AX8: =AB33 -> Fuel Cost | BB8: N/A | BE8: =AD33 -> 3.897893478 | BF8: =AJ33 -> 6.572957103 | BJ8: N/A | BO8: 2004 | BP8: 2.764402707 | BQ8: 2.678892559 | BR8: 13.75608295 | BS8: 4.751875597 | BU8: KCOG | BV8: 7.944554399 | BW8: 728.0780708 | BX8: 1192.442742 | BY8: 3290.561374 | BZ8: 679.8523652 | CC8: Insurance ($, Annual) | CD8: 1288 | CE8: 1202 | CF8: 1200 | CG8: 1076 | CH8: 1089 | CI8: 1075 | CJ8: 1229 | CK8: 1208 | CL8: 1185 | CN8: 1230 | CO8: 1082 | CS8: AMBAG | CT8: 2004 | CU8: 8.058983082 | CV8: 6.55 | CW8: 6.99
B9: 2000 | C9: AMBAG | D9: LDT2 | E9: DIESEL | F9: 5.329985793 | G9: 5.329985793 | H9: 0 | I9: 159.4257371 | J9: 159.4257371 | K9: 0 | L9: 22.58268694 | M9: 22.58268694 | N9: 0 | O9: 0.008288927385 | P9: 0 | W9: MCTC | X9: 2006 | AD9: Default | AE9: Custom | AG9: Default | AH9: Custom | AJ9: Default | AK9: Custom | AM9: Default | AN9: Custom | AP9: Default | AQ9: Custom | AW9: =#REF! ->  | AX9: =#REF! ->  | BB9: =#REF! ->  | BE9: =#REF! ->  | BF9: =#REF! ->  | BJ9: =#REF! ->  | BO9: 2005 | BP9: 3.112250114 | BQ9: 3.224770877 | BR9: 13.99255717 | BS9: 4.833562809 | BU9: MCAG | BV9: 7.931283451 | BW9: 720.9602997 | BX9: 1195.527895 | BY9: 3271.349964 | BZ9: 672.4684568 | CC9: Depreciation ($, Based on 15,000 Miles) | CD9: 2114 | CE9: 3187 | CF9: 3799 | CG9: 2840 | CH9: 3720 | CI9: 3839 | CJ9: 3587 | CK9: 3301 | CL9: 5704 | CN9: 3033.333333 | CO9: 3779.5 | CS9: AMBAG | CT9: 2005 | CU9: 7.659437402 | CV9: 6.55 | CW9: 6.99
B10: 2000 | C10: AMBAG | D10: LDT2 | E10: DIESEL | F10: 2.049585756 | G10: 2.049585756 | H10: 0 | I10: 56.12343459 | J10: 56.12343459 | K10: 0 | L10: 8.46880315 | M10: 8.46880315 | N10: 0 | O10: 0.002714006983 | P10: 0 | W10: MTC | X10: 2007 | AB10: Fuel Cost (dollar/gasoline gallon equivalent)1 | AC10: Default | AD10: =AD46 -> 3.897893478 | AF10: Default | AG10: =AG46 -> 3.775340329 | AI10: Default | AJ10: =AJ46 -> 6.572957103 | AL10: Default | AM10: =AM46 -> 12.56248485 | AP10: =AO33 -> 5.25132373 | AQ10: =AP10 -> 5.25132373 | BO10: 2006 | BP10: 3.424943281 | BQ10: 3.505318483 | BR10: 14.2330965 | BS10: 4.916654266 | BU10: MCTC | BV10: 7.943498867 | BW10: 726.8966523 | BX10: 1191.51138 | BY10: 3290.692238 | BZ10: 678.8421221 | CC10: Finance Charges | CD10: 396 | CE10: 597 | CF10: 706 | CG10: 567 | CH10: 806 | CI10: 692 | CJ10: 922 | CK10: 624 | CL10: 671 | CN10: 566.3333333 | CO10: 749 | CS10: AMBAG | CT10: 2006 | CU10: 7.31910738 | CV10: 6.55 | CW10: 6.99
B11: 2000 | C11: AMBAG | D11: LDT2 | E11: DIESEL | F11: 9.818193826 | G11: 9.818193826 | H11: 0 | I11: 266.8881595 | J11: 266.8881595 | K11: 0 | L11: 41.09131627 | M11: 41.09131627 | N11: 0 | O11: 0.01337459724 | P11: 0 | W11: SACOG | X11: 2008 | AB11: Non-fuel Cost (cents per mile) 2 | AC11: Default | AD11: =AD47 -> 7.935138819 | AF11: Default | AG11: =AG47 -> 7.935138819 | AI11: Default | AJ11: =AJ47 -> 6.55 | AL11: Default | AM11: =AM47 -> 7.935138819 | AP11: =AO47 -> 6.99 | AQ11: =AP11 -> 6.99 | BO11: 2007 | BP11: 3.650313822 | BQ11: 3.615259591 | BR11: 14.47777082 | BS11: 5.001174108 | BU11: MTC | BV11: 7.897248538 | BW11: 697.1305088 | BX11: 1190.183755 | BY11: 3247.53214 | BZ11: 650.1942341 | CC11: * https://exchange.aaa.com/wp-content/uploads/2017/08/17-0013_Your-Driving-Costs-Brochure-2017-FNL-CX-1.pdf | CS11: AMBAG | CT11: 2007 | CU11: 7.165968889 | CV11: 6.55 | CW11: 6.99
W12: SANDAG | X12: 2009 | AB12: VMT | AC12: Custom | AD12: =AD48 -> 17988856.31 | AF12: Custom | AG12: 253177.8522 | AI12: Custom | AJ12: 180826.8356 | AL12: Custom | AM12: 63309.12845 | AO12: Custom | AP12: =AO48 -> 382195.1774 | CS12: AMBAG | CT12: 2008 | CU12: 6.717204159 | CV12: 6.55 | CW12: 6.99
B13: 2000 | C13: AMBAG | D13: MDV | E13: DIESEL | F13: 181.4824015 | G13: 181.4824015 | H13: 0 | I13: 4963.410156 | J13: 4963.410156 | K13: 0 | L13: 761.7563254 | M13: 761.7563254 | N13: 0 | O13: 0.2872874872 | P13: 0 | W13: SBCAG | X13: 2010 | AW13: =SUMIFS($G$3:$G43276, $B$3:$B43276, $AH$5, $C$3:$C43276, $AH$4, $D$3:$D43276, "LDA", $E$3:$E43276, "PHEV") + SUMIFS($G$3:$G43276, $B$3:$B43276, $AH$5, $C$3:$C43276, $AH$4, $D$3:$D43276, "LDT1", $E$3:$E43276, "PHEV") + SUMIFS($G$3:$G43276, $B$3:$B43276, $AH$5, $C$3:$C43276, $AH$4, $D$3:$D43276, "LDT2", $E$3:$E43276, "PHEV") + SUMIFS($G$3:$G43276, $B$3:$B43276, $AH$5, $C$3:$C43276, $AH$4, $D$3:$D43276, "MDV", $E$3:$E43276, "PHEV") -> 4663.611031 | AX13: =SUMIFS($H$3:$H43276, $B$3:$B43276, $AH$5, $C$3:$C43276, $AH$4, $D$3:$D43276, "LDA", $E$3:$E43276, "PHEV") + SUMIFS($H$3:$H43276, $B$3:$B43276, $AH$5, $C$3:$C43276, $AH$4, $D$3:$D43276, "LDT1", $E$3:$E43276, "PHEV") + SUMIFS($H$3:$H43276, $B$3:$B43276, $AH$5, $C$3:$C43276, $AH$4, $D$3:$D43276, "LDT2", $E$3:$E43276, "PHEV") + SUMIFS($H$3:$H43276, $B$3:$B43276, $AH$5, $C$3:$C43276, $AH$4, $D$3:$D43276, "MDV", $E$3:$E43276, "PHEV") -> 4911.566712 | BB13: =AW13+AX13 -> 9575.177743 | BE13: =SUMIFS($G$3:$G43276, $B$3:$B43276, $AH$5, $C$3:$C43276, $AH$4, $D$3:$D43276, "LDA", $E$3:$E43276, "PHEV") + SUMIFS($G$3:$G43276, $B$3:$B43276, $AH$5, $C$3:$C43276, $AH$4, $D$3:$D43276, "LDT1", $E$3:$E43276, "PHEV") + SUMIFS($G$3:$G43276, $B$3:$B43276, $AH$5, $C$3:$C43276, $AH$4, $D$3:$D43276, "LDT2", $E$3:$E43276, "PHEV") + SUMIFS($G$3:$G43276, $B$3:$B43276, $AH$5, $C$3:$C43276, $AH$4, $D$3:$D43276, "MDV", $E$3:$E43276, "PHEV") -> 4663.611031 | BF13: =SUMIFS($H$3:$H43276, $B$3:$B43276, $AH$5, $C$3:$C43276, $AH$4, $D$3:$D43276, "LDA", $E$3:$E43276, "PHEV") + SUMIFS($H$3:$H43276, $B$3:$B43276, $AH$5, $C$3:$C43276, $AH$4, $D$3:$D43276, "LDT1", $E$3:$E43276, "PHEV") + SUMIFS($H$3:$H43276, $B$3:$B43276, $AH$5, $C$3:$C43276, $AH$4, $D$3:$D43276, "LDT2", $E$3:$E43276, "PHEV") + SUMIFS($H$3:$H43276, $B$3:$B43276, $AH$5, $C$3:$C43276, $AH$4, $D$3:$D43276, "MDV", $E$3:$E43276, "PHEV") -> 4911.566712 | BJ13: =BE13+BF13 -> 9575.177743 | BO13: 2008 | BP13: 4.082168134 | BQ13: 4.499441148 | BR13: 14.72665123 | BS13: 5.087146891 | BU13: SACOG | BV13: 7.921898685 | BW13: 711.8840472 | BX13: 1188.893841 | BY13: 3273.019223 | BZ13: 664.674772 | CS13: AMBAG | CT13: 2009 | CU13: 6.511170267 | CV13: 6.55 | CW13: 6.99
B14: 2000 | C14: AMBAG | D14: MDV | E14: DIESEL | F14: 37.97408672 | G14: 37.97408672 | H14: 0 | I14: 1050.421898 | J14: 1050.421898 | K14: 0 | L14: 160.3611189 | M14: 160.3611189 | N14: 0 | O14: 0.05509074458 | P14: 0 | W14: SCAG | X14: 2011 | AB14: Fuel Efficiency (mile/gasoline gallon equivlent) | AC14: Gasoline | AD14: =AD39 -> 29.97469694 | AF14: Diesel | AG14: =AG39 -> 40.64702376 | AI14: Electric | AJ14: =AJ39 -> 121.0634707 | AL14: Hydrogen | AM14: =AM39 -> 79.31950237 | AO14: PHEV | AP14: =AO39 -> 65.44468342 | BO14: 2009 | BP14: 3.099387528 | BQ14: 2.965175517 | BR14: 14.97981002 | BS14: 5.17459759 | BU14: SANDAG | BV14: 7.908040385 | BW14: 702.1875746 | BX14: 1188.217713 | BY14: 3257.326994 | BZ14: 655.3256324 | CS14: AMBAG | CT14: 2010 | CU14: 6.444780142 | CV14: 6.55 | CW14: 6.99
B15: 2000 | C15: AMBAG | D15: MDV | E15: DIESEL | F15: 72.50358518 | G15: 72.50358518 | H15: 0 | I15: 1854.778376 | J15: 1854.778376 | K15: 0 | L15: 303.9494694 | M15: 303.9494694 | N15: 0 | O15: 0.1017162991 | P15: 0 | W15: SCRTPA | X15: 2012 | AW15: =AW16/(AW16+AX16) -> 0.4876054299 | AX15: =AX16/(AX16+AW16) -> 0.5123945701 | BE15: =BE16/(BE16+BF16) -> 0.4940567994 | BF15: =BF16/(BF16+BE16) -> 0.5059432006 | BO15: 2010 | BP15: 3.525884483 | BQ15: 3.54723305 | BR15: 15.23732074 | BS15: 5.263551612 | BU15: SBCAG | BV15: 7.934188512 | BW15: 721.1778953 | BX15: 1187.865904 | BY15: 3296.940947 | BZ15: 674.0079146 | CS15: AMBAG | CT15: 2011 | CU15: 6.381296889 | CV15: 6.55 | CW15: 6.99
B16: 2000 | C16: AMBAG | D16: LDA | E16: ELECTRIC | F16: 9.647424597 | G16: 0 | H16: 9.647424597 | I16: 229.3673471 | J16: 0 | K16: 229.3673471 | L16: 43.07392634 | M16: 0 | N16: 43.07392634 | O16: 0 | P16: 0.002238053423 | W16: SJCOG | X16: 2013 | AB16: Auto Operating Cost by Fuel Type (Cents/Mile) | AC16: Gasoline | AD16: =AD41 -> 20.93908507 | AF16: Diesel | AG16: =AG41 -> 17.22324894 | AI16: Electric | AJ16: =AJ41 -> 11.97934798 | AL16: Hydrogen | AM16: =AM41 -> 23.77296492 | AO16: PHEV | AP16: =AO41 -> 0 | AW16: =SUMIFS($J$3:$J43279, $B$3:$B43279, $AH$5, $D$3:$D43279, "LDA", $E$3:$E43279, "PHEV") + SUMIFS($J$3:$J43279, $B$3:$B43279, $AH$5, $D$3:$D43279, "LDT1", $E$3:$E43279, "PHEV") + SUMIFS($J$3:$J43279, $B$3:$B43279, $AH$5, $D$3:$D43279, "LDT2", $E$3:$E43279, "PHEV") + SUMIFS($J$3:$J43279, $B$3:$B43279, $AH$5, $D$3:$D43279, "MDV", $E$3:$E43279, "PHEV") -> 10656597.09 | AX16: =SUMIFS($K$3:$K43279, $B$3:$B43279, $AH$5, $D$3:$D43279, "LDA", $E$3:$E43279, "PHEV") + SUMIFS($K$3:$K43279, $B$3:$B43279, $AH$5, $D$3:$D43279, "LDT1", $E$3:$E43279, "PHEV") + SUMIFS($K$3:$K43279, $B$3:$B43279, $AH$5, $D$3:$D43279, "LDT2", $E$3:$E43279, "PHEV") + SUMIFS($K$3:$K43279, $B$3:$B43279, $AH$5, $D$3:$D43279, "MDV", $E$3:$E43279, "PHEV") -> 11198362.75 | BB16: =AW16+AX16 -> 21854959.84 | BE16: =SUMIFS($J$3:$J43279, $B$3:$B43279, $AH$5, $C$3:$C43279, $AH$4, $D$3:$D43279, "LDA", $E$3:$E43279, "PHEV") + SUMIFS($J$3:$J43279, $B$3:$B43279, $AH$5, $C$3:$C43279, $AH$4, $D$3:$D43279, "LDT1", $E$3:$E43279, "PHEV") + SUMIFS($J$3:$J43279, $B$3:$B43279, $AH$5, $C$3:$C43279, $AH$4, $D$3:$D43279, "LDT2", $E$3:$E43279, "PHEV") + SUMIFS($J$3:$J43279, $B$3:$B43279, $AH$5, $C$3:$C43279, $AH$4, $D$3:$D43279, "MDV", $E$3:$E43279, "PHEV") -> 188826.1261 | BF16: =SUMIFS($K$3:$K43279, $B$3:$B43279, $AH$5, $C$3:$C43279, $AH$4, $D$3:$D43279, "LDA", $E$3:$E43279, "PHEV") + SUMIFS($K$3:$K43279, $B$3:$B43279, $AH$5, $C$3:$C43279, $AH$4, $D$3:$D43279, "LDT1", $E$3:$E43279, "PHEV") + SUMIFS($K$3:$K43279, $B$3:$B43279, $AH$5, $C$3:$C43279, $AH$4, $D$3:$D43279, "LDT2", $E$3:$E43279, "PHEV") + SUMIFS($K$3:$K43279, $B$3:$B43279, $AH$5, $C$3:$C43279, $AH$4, $D$3:$D43279, "MDV", $E$3:$E43279, "PHEV") -> 193369.0513 | BJ16: =BE16+BF16 -> 382195.1774 | BO16: 2011 | BP16: 4.252727104 | BQ16: 4.496023166 | BR16: 15.4992582 | BS16: 5.3540348 | BU16: SCAG | BV16: 7.901544829 | BW16: 700.3883284 | BX16: 1191.702459 | BY16: 3248.392882 | BZ16: 653.1076432 | CS16: AMBAG | CT16: 2012 | CU16: 6.297108519 | CV16: 6.55 | CW16: 6.99
B17: 2000 | C17: AMBAG | D17: LDA | E17: ELECTRIC | F17: 0.09728612178 | G17: 0 | H17: 0.09728612178 | I17: 2.824510642 | J17: 0 | K17: 2.824510642 | L17: 0.4608452638 | M17: 0 | N17: 0.4608452638 | O17: 0 | P17: 2.756018148e-05 | W17: SLOCOG | X17: 2014 | BO17: 2012 | BP17: 4.411401495 | BQ17: 4.572464671 | BR17: 15.76569851 | BS17: 5.446073442 | BU17: SCRTPA | BV17: 7.939579616 | BW17: 723.2702189 | BX17: 1187.447215 | BY17: 3297.405302 | BZ17: 676.0069597 | CS17: AMBAG | CT17: 2013 | CU17: 6.7487968 | CV17: 6.55 | CW17: 6.99
B18: 2000 | C18: AMBAG | D18: LDA | E18: ELECTRIC | F18: 7.552456789 | G18: 0 | H18: 7.552456789 | I18: 183.5768715 | J18: 0 | K18: 183.5768715 | L18: 33.87528367 | M18: 0 | N18: 33.87528367 | O18: 0 | P18: 0.001791252552 | W18: StanCOG | X18: 2015 | AG18: Calendar Year | AI18: =AH5 -> 2025 | BO18: 2013 | BP18: 4.183930438 | BQ18: 4.389244085 | BR18: 16.03671906 | BS18: 5.539694275 | BU18: SJCOG | BV18: 7.921482476 | BW18: 714.3899626 | BX18: 1194.715148 | BY18: 3263.029359 | BZ18: 666.2227566 | CS18: AMBAG | CT18: 2014 | CU18: 6.695510964 | CV18: 6.55 | CW18: 6.99
B19: 2000 | C19: AMBAG | D19: LDT1 | E19: ELECTRIC | F19: 2.293599527 | G19: 0 | H19: 2.293599527 | I19: 73.9590863 | J19: 0 | K19: 73.9590863 | L19: 11.31571508 | M19: 0 | N19: 11.31571508 | O19: 0 | P19: 0.0008390664288 | W19: TCAG | X19: 2016 | AB19: Steps: | AG19: Auto Operating Cost (Cents/Mile) | AI19: =IF(ISERROR(AD43),"N/A",AD43) -> N/A | AW19: =( SUMIFS($O$3:$O43281, $B$3:$B43281, $AH$5, $D$3:$D43281, "LDA", $E$3:$E43281, "PHEV") + SUMIFS($O$3:$O43281, $B$3:$B43281, $AH$5, $D$3:$D43281, "LDT1", $E$3:$E43281, "PHEV") + SUMIFS($O$3:$O43281, $B$3:$B43281, $AH$5, $D$3:$D43281, "LDT2", $E$3:$E43281, "PHEV") + SUMIFS($O$3:$O43281, $B$3:$B43281, $AH$5, $D$3:$D43281, "MDV", $E$3:$E43281, "PHEV") ) * 1000 -> 242804.5767 | BB19: =AW19 -> 242804.5767 | BE19: =( SUMIFS($O$3:$O43281, $B$3:$B43281, $AH$5, $C$3:$C43281, $AH$4, $D$3:$D43281, "LDA", $E$3:$E43281, "PHEV") + SUMIFS($O$3:$O43281, $B$3:$B43281, $AH$5, $C$3:$C43281, $AH$4, $D$3:$D43281, "LDT1", $E$3:$E43281, "PHEV") + SUMIFS($O$3:$O43281, $B$3:$B43281, $AH$5, $C$3:$C43281, $AH$4, $D$3:$D43281, "LDT2", $E$3:$E43281, "PHEV") + SUMIFS($O$3:$O43281, $B$3:$B43281, $AH$5, $C$3:$C43281, $AH$4, $D$3:$D43281, "MDV", $E$3:$E43281, "PHEV") ) * 1000 -> 4392.523926 | BJ19: =BE19 -> 4392.523926 | BO19: 2014 | BP19: 3.964825383 | BQ19: 4.184280663 | BR19: 16.3123986 | BS19: 5.634924499 | BU19: SLOCOG | BV19: 7.937098024 | BW19: 721.3998844 | BX19: 1186.683605 | BY19: 3296.508614 | BZ19: 674.3144677 | CS19: AMBAG | CT19: 2015 | CU19: 6.726298697 | CV19: 6.55 | CW19: 6.99
B20: 2000 | C20: AMBAG | D20: LDT1 | E20: ELECTRIC | F20: 0.04411812499 | G20: 0 | H20: 0.04411812499 | I20: 1.290346118 | J20: 0 | K20: 1.290346118 | L20: 0.2094765434 | M20: 0 | N20: 0.2094765434 | O20: 0 | P20: 1.463898708e-05 | W20: TMPO | X20: 2017 | AB20: 1. Select MPO and Calender Year from the drop-down list. | AL20: Note: | AX20: =( SUMIFS($P$3:$P43281, $B$3:$B43281, $AH$5, $D$3:$D43281, "LDA", $E$3:$E43281, "PHEV") + SUMIFS($P$3:$P43281, $B$3:$B43281, $AH$5, $D$3:$D43281, "LDT1", $E$3:$E43281, "PHEV") + SUMIFS($P$3:$P43281, $B$3:$B43281, $AH$5, $D$3:$D43281, "LDT2", $E$3:$E43281, "PHEV") + SUMIFS($P$3:$P43281, $B$3:$B43281, $AH$5, $D$3:$D43281, "MDV", $E$3:$E43281, "PHEV") ) * 1000 -> 91140.95868 | BB20: =AX20 -> 91140.95868 | BF20: =( SUMIFS($P$3:$P43281, $B$3:$B43281, $AH$5, $C$3:$C43281, $AH$4, $D$3:$D43281, "LDA", $E$3:$E43281, "PHEV") + SUMIFS($P$3:$P43281, $B$3:$B43281, $AH$5, $C$3:$C43281, $AH$4, $D$3:$D43281, "LDT1", $E$3:$E43281, "PHEV") + SUMIFS($P$3:$P43281, $B$3:$B43281, $AH$5, $C$3:$C43281, $AH$4, $D$3:$D43281, "LDT2", $E$3:$E43281, "PHEV") + SUMIFS($P$3:$P43281, $B$3:$B43281, $AH$5, $C$3:$C43281, $AH$4, $D$3:$D43281, "MDV", $E$3:$E43281, "PHEV") ) * 1000 -> 1576.232829 | BJ20: =BF20 -> 1576.232829 | BO20: 2015 | BP20: 3.330514 | BQ20: 3.11751 | BR20: 16.59281721 | BS20: 5.73179178 | BU20: StanCOG | BV20: 7.935647313 | BW20: 722.7689911 | BX20: 1194.032023 | BY20: 3276.948454 | BZ20: 674.4286151 | CS20: AMBAG | CT20: 2016 | CU20: 6.795442962 | CV20: 6.55 | CW20: 6.99
B21: 2000 | C21: AMBAG | D21: LDT1 | E21: ELECTRIC | F21: 2.265737037 | G21: 0 | H21: 2.265737037 | I21: 45.38782696 | J21: 0 | K21: 45.38782696 | L21: 9.595773974 | M21: 0 | N21: 9.595773974 | O21: 0 | P21: 0.0005149252618 | X21: 2018 | AB21: 2. Select "Default" or "Custom" mode for each parameter from the drop-down list | AL21: 1- Input as 2017 dollars/cents | AW21: =AW19+AW20 -> 242804.5767 | AX21: =AX19+AX20 -> 91140.95868 | BB21: =BB19+BB20 -> 333945.5353 | BE21: =BE19+BE20 -> 4392.523926 | BF21: =BF19+BF20 -> 1576.232829 | BJ21: =BJ19+BJ20 -> 5968.756756 | BO21: 2016 | BP21: 2.839111305 | BQ21: 2.70848361 | BR21: 16.14821927 | BS21: 5.982255762 | BU21: TCAG | BV21: 7.951473461 | BW21: 733.0406604 | BX21: 1194.778083 | BY21: 3290.974615 | BZ21: 684.2664522 | CS21: AMBAG | CT21: 2017 | CU21: 7.935138819 | CV21: 6.55 | CW21: 6.99
B22: 2000 | C22: AMBAG | D22: LDA | E22: GAS | F22: 140278.5673 | G22: 140278.5673 | H22: 0 | I22: 5293476.645 | J22: 5293476.645 | K22: 0 | L22: 647793.4549 | M22: 647793.4549 | N22: 0 | O22: 241.1444403 | P22: 0 | X22: 2019 | AB22: 3. Enter custom value(s) after selecting "Custom" mode for fuel cost, non-fuel cost and VMT | AL22: 2- Include maintenace, repair and tire cost | BO22: 2017 | BP22: 3.097060751 | BQ22: 3.083988741 | BR22: 15.92109765 | BS22: 6.14592513 | BU22: TMPO | BV22: 8.00608799 | BW22: 756.1436758 | BX22: 1165.534307 | BY22: 3405.650247 | BZ22: 711.2989549 | CS22: AMBAG | CT22: 2018 | CU22: 7.935138819 | CV22: 6.55 | CW22: 6.99
B23: 2000 | C23: AMBAG | D23: LDA | E23: GAS | F23: 18098.40208 | G23: 18098.40208 | H23: 0 | I23: 776350.7747 | J23: 776350.7747 | K23: 0 | L23: 84347.13236 | M23: 84347.13236 | N23: 0 | O23: 32.51460482 | P23: 0 | X23: 2020 | BO23: 2018 | BP23: 3.211106139 | BQ23: 3.050894643 | BR23: 15.6972159 | BS23: 6.316848319 | BU23: * https://exchange.aaa.com/wp-content/uploads/2017/08/17-0013_Your-Driving-Costs-Brochure-2017-FNL-CX-1.pdf | CS23: AMBAG | CT23: 2019 | CU23: 7.935138819 | CV23: 6.55 | CW23: 6.99
B24: 2000 | C24: AMBAG | D24: LDA | E24: GAS | F24: 77903.59178 | G24: 77903.59178 | H24: 0 | I24: 2733824.059 | J24: 2733824.059 | K24: 0 | L24: 357810.8846 | M24: 357810.8846 | N24: 0 | O24: 119.3947191 | P24: 0 | X24: 2021 | AW24: =AW16 / AW21 -> 43.88960552 | AX24: =AX16 / AX21 -> 122.8686083 | AY24: =SUMIF(AW24:AW24,"<>#DIV/0!") -> 43.88960552 | AZ24: =SUMIF(AX24:AX24,"<>#DIV/0!") -> 122.8686083 | BA24: =AW24 * ( AW16/BB16) + AX24 * (AX16/BB16) -> 84.35801768 | BB24: =SUMIF(BA24:BA24,"<>#DIV/0!") -> 84.35801768 | BE24: =BE16 / BE21 -> 42.98807001 | BF24: =BF16 / BF21 -> 122.6779748 | BG24: =SUMIF(BE24:BE24,"<>#DIV/0!") -> 42.98807001 | BH24: =SUMIF(BF24:BF24,"<>#DIV/0!") -> 122.6779748 | BI24: =BE24 * ( BE16/BJ16) + BF24 * (BF16/BJ16) -> 83.30663548 | BJ24: =SUMIF(BI24:BI24,"<>#DIV/0!") -> 83.30663548 | BO24: 2019 | BP24: 3.308956678 | BQ24: 3.228955409 | BR24: 15.24938417 | BS24: 6.500856536 | BU24: ** Maintenance, Repair, and Tires | CS24: AMBAG | CT24: 2020 | CU24: 7.935138819 | CV24: 6.55 | CW24: 6.99
B25: 2000 | C25: AMBAG | D25: LDT1 | E25: GAS | F25: 26783.02603 | G25: 26783.02603 | H25: 0 | I25: 925299.7227 | J25: 925299.7227 | K25: 0 | L25: 120081.913 | M25: 120081.913 | N25: 0 | O25: 48.56295089 | P25: 0 | X25: 2022 | BO25: 2020 | BP25: 3.448917634 | BQ25: 3.343459636 | BR25: 14.80155723 | BS25: 6.454656767 | BU25: *** License, Registration, Taxes | CS25: AMBAG | CT25: 2021 | CU25: 7.935138819 | CV25: 6.55 | CW25: 6.99
B26: 2000 | C26: AMBAG | D26: LDT1 | E26: GAS | F26: 4613.636103 | G26: 4613.636103 | H26: 0 | I26: 165332.6606 | J26: 165332.6606 | K26: 0 | L26: 20629.99372 | M26: 20629.99372 | N26: 0 | O26: 8.022056528 | P26: 0 | X26: 2023 | BO26: 2021 | BP26: 3.58818693 | BQ26: 3.43776211 | BR26: 14.35371652 | BS26: 6.49347354 | CS26: AMBAG | CT26: 2022 | CU26: 7.935138819 | CV26: 6.55 | CW26: 6.99
B27: 2000 | C27: AMBAG | D27: LDT1 | E27: GAS | F27: 14817.92022 | G27: 14817.92022 | H27: 0 | I27: 485055.6127 | J27: 485055.6127 | K27: 0 | L27: 65089.80637 | M27: 65089.80637 | N27: 0 | O27: 24.56684053 | P27: 0 | X27: 2024 | AW27: =(AW8/AW24) * 100 -> 0 | AX27: =(AX8/AX24) * 100 ->  | AY27: =SUMIF(AW27:AW27,"<>#DIV/0!") -> 0 | AZ27: =SUMIF(AX27:AX27,"<>#DIV/0!") ->  | BA27: =BB33/AO36*100 ->  | BB27: =SUMIF(BA27:BA27,"<>#DIV/0!") -> 0 | BE27: =(BE8/BE24) * 100 -> 9.067384222 | BF27: =(BF8/BF24) * 100 -> 5.357895022 | BG27: =SUMIF(BE27:BE27,"<>#DIV/0!") -> 9.067384222 | BH27: =SUMIF(BF27:BF27,"<>#DIV/0!") -> 5.357895022 | BI27: =BJ33/AO36*100 ->  | BJ27: =SUMIF(BI27:BI27,"<>#DIV/0!") -> 0 | BO27: 2022 | BP27: 3.721161307 | BQ27: 3.548563764 | BR27: 13.90594869 | BS27: 6.483958256 | BU27: Note: The AAA costs are provided for three categories of sedans, two categories of SUVs, a minivan,a light truck, a hybrid, and an electric car. The costs were VMT-weighted with default EMFAC2017 data to develop composite costs. Gasoline, diesel, and hydrogen vehicles are assumed to to be identical. | CS27: AMBAG | CT27: 2023 | CU27: 7.935138819 | CV27: 6.55 | CW27: 6.99
B28: 2000 | C28: AMBAG | D28: LDT2 | E28: GAS | F28: 46528.66254 | G28: 46528.66254 | H28: 0 | I28: 1798442.603 | J28: 1798442.603 | K28: 0 | L28: 220048.8423 | M28: 220048.8423 | N28: 0 | O28: 111.2982309 | P28: 0 | X28: 2025 | BO28: 2023 | BP28: 3.775766269 | BQ28: 3.612327565 | BR28: 13.45806668 | BS28: 6.501536229 | CS28: AMBAG | CT28: 2024 | CU28: 7.935138819 | CV28: 6.55 | CW28: 6.99
B29: 2000 | C29: AMBAG | D29: LDT2 | E29: GAS | F29: 7210.494019 | G29: 7210.494019 | H29: 0 | I29: 304138.4278 | J29: 304138.4278 | K29: 0 | L29: 34171.72581 | M29: 34171.72581 | N29: 0 | O29: 17.46158926 | P29: 0 | T29: Default | X29: 2026 | BO29: 2024 | BP29: 3.826080789 | BQ29: 3.672009064 | BR29: 13.01026956 | BS29: 6.546743658 | CS29: AMBAG | CT29: 2025 | CU29: 7.935138819 | CV29: 6.55 | CW29: 6.99
B30: 2000 | C30: AMBAG | D30: LDT2 | E30: GAS | F30: 29288.42743 | G30: 29288.42743 | H30: 0 | I30: 1144592.079 | J30: 1144592.079 | K30: 0 | L30: 137862.8373 | M30: 137862.8373 | N30: 0 | O30: 67.2779867 | P30: 0 | T30: Custom | X30: 2027 | AW30: N/A | AX30: N/A | BA30: =BA27 + AP11 ->  | BB30: =SUMIF(BA30:BA30,"<>#DIV/0!") -> 0 | BE30: N/A | BF30: N/A | BI30: =BI27 + AP11 ->  | BJ30: =SUMIF(BI30:BI30,"<>#DIV/0!") -> 0 | BO30: 2025 | BP30: 3.897893478 | BQ30: 3.775340329 | BR30: 12.56248485 | BS30: 6.572957103 | CS30: AMBAG | CT30: 2026 | CU30: 7.935138819 | CV30: 6.55 | CW30: 6.99
B31: 2000 | C31: AMBAG | D31: MDV | E31: GAS | F31: 23678.87268 | G31: 23678.87268 | H31: 0 | I31: 975915.9454 | J31: 975915.9454 | K31: 0 | L31: 114618.0132 | M31: 114618.0132 | N31: 0 | O31: 61.58276832 | P31: 0 | X31: 2028 | BO31: 2026 | BP31: 3.962395748 | BQ31: 3.851099874 | BR31: 12.11465521 | BS31: 6.589728826 | CS31: AMBAG | CT31: 2027 | CU31: 7.935138819 | CV31: 6.55 | CW31: 6.99
B32: 2000 | C32: AMBAG | D32: MDV | E32: GAS | F32: 4567.527833 | G32: 4567.527833 | H32: 0 | I32: 209364.8075 | J32: 209364.8075 | K32: 0 | L32: 22190.67738 | M32: 22190.67738 | N32: 0 | O32: 12.30350421 | P32: 0 | X32: 2029 | BO32: 2027 | BP32: 4.002918407 | BQ32: 3.921794799 | BR32: 11.66682323 | BS32: 6.603785091 | CS32: AMBAG | CT32: 2028 | CU32: 7.935138819 | CV32: 6.55 | CW32: 6.99
B33: 2000 | C33: AMBAG | D33: MDV | E33: GAS | F33: 10994.86659 | G33: 10994.86659 | H33: 0 | I33: 457179.9066 | J33: 457179.9066 | K33: 0 | L33: 52756.71803 | M33: 52756.71803 | N33: 0 | O33: 27.67311816 | P33: 0 | X33: 2030 | AB33: Fuel Cost | AD33: =IF(AC10="Default",AD46,AE10) -> 3.897893478 | AG33: =IF(AF10="Default",AG46,AH10) -> 3.775340329 | AJ33: =IF(AI10="Default",AJ46,AK10) -> 6.572957103 | AM33: =IF(AL10="Default",AM46,AN10) -> 12.56248485 | AO33: =IFERROR(AD33*BE15+AJ33*BF15,"N/A") -> 5.25132373 | BA33: PHEV Fuek Cost | BB33: =AO36*AW15*AD33/AW24+AO36*AX15*AJ33/AX24 -> 0 | BI33: PHEV Fuek Cost | BJ33: =AO36*BE15*AD33/BE24+AO36*BF15*AJ33/BF24 -> 0 | BO33: 2028 | BP33: 4.029760134 | BQ33: 3.970162397 | BR33: 11.21903842 | BS33: 6.636100739 | CS33: AMBAG | CT33: 2029 | CU33: 7.935138819 | CV33: 6.55 | CW33: 6.99
B34: 2000 | C34: AMBAG | D34: LDA | E34: HYDROGEN | F34: 0 | G34: 0 | H34: 0 | I34: 0 | J34: 0 | K34: 0 | L34: 0 | M34: 0 | N34: 0 | O34: 0 | P34: 0 | X34: 2031 | AB34: Other Cost | AD34: =IF(AC11="Default",AD47,AE11) -> 7.935138819 | AG34: =IF(AF11="Default",AG47,AH11) -> 7.935138819 | AJ34: =IF(AI11="Default",AJ47,AK11) -> 6.55 | AM34: =IF(AL11="Default",AM47,AN11) -> 7.935138819 | AO34: =#REF! ->  | BO34: 2029 | BP34: 4.093526203 | BQ34: 4.049907448 | BR34: 10.77119172 | BS34: 6.627245485 | CS34: AMBAG | CT34: 2030 | CU34: 7.935138819 | CV34: 6.55 | CW34: 6.99
B35: 2000 | C35: AMBAG | D35: LDA | E35: HYDROGEN | F35: 0 | G35: 0 | H35: 0 | I35: 0 | J35: 0 | K35: 0 | L35: 0 | M35: 0 | N35: 0 | O35: 0 | P35: 0 | X35: 2032 | AB35: Vehicle Population | AD35: =IF(#REF!="Default", SUMIFS($G$3:$G43276, $B$3:$B43276, $AH$5, $C$3:$C43276, $AH$4, $D$3:$D43276, "LDA", $E$3:$E43276, "GAS") + SUMIFS($G$3:$G43276, $B$3:$B43276, $AH$5, $C$3:$C43276, $AH$4, $D$3:$D43276, "LDT1", $E$3:$E43276, "GAS") + SUMIFS($G$3:$G43276, $B$3:$B43276, $AH$5, $C$3:$C43276, $AH$4, $D$3:$D43276, "LDT2", $E$3:$E43276, "GAS") + SUMIFS($G$3:$G43276, $B$3:$B43276, $AH$5, $C$3:$C43276, $AH$4, $D$3:$D43276, "MDV", $E$3:$E43276, "GAS"),#REF!) ->  | AM35: =IF(AL12="Default",AM48,AN12) -> 0 | AO35: =IFERROR(AD34*BE15+AJ34*BF15,"N/A") -> 7.234337252 | AQ35: =SUM(AD35:AO35) ->  | BO35: 2030 | BP35: 4.179752932 | BQ35: 4.157315641 | BR35: 10.32335418 | BS35: 6.610394671 | CS35: AMBAG | CT35: 2031 | CU35: 7.935138819 | CV35: 6.55 | CW35: 6.99
B36: 2000 | C36: AMBAG | D36: LDT1 | E36: HYDROGEN | F36: 0 | G36: 0 | H36: 0 | I36: 0 | J36: 0 | K36: 0 | L36: 0 | M36: 0 | N36: 0 | O36: 0 | P36: 0 | X36: 2033 | AB36: VMT | AD36: =IF(AC12="Default",AD48,AE12) -> 0 | AG36: =IF(AF12="Default",AG48,AH12) -> 0 | AJ36: =IF(AI12="Default",AJ48,AK12) -> 0 | AM36: =IF(AL12="Default",AM48,AN12) -> 0 | AO36: =IF(AO12="Default",BE16+BF16,AQ12) -> 0 | AQ36: =SUM(AD36:AO36) -> 0 | BO36: 2031 | BP36: 4.179752932 | BQ36: 4.157315641 | BR36: 10.32335418 | BS36: 6.610394671 | CS36: AMBAG | CT36: 2032 | CU36: 7.935138819 | CV36: 6.55 | CW36: 6.99
B37: 2000 | C37: AMBAG | D37: LDT1 | E37: HYDROGEN | F37: 0 | G37: 0 | H37: 0 | I37: 0 | J37: 0 | K37: 0 | L37: 0 | M37: 0 | N37: 0 | O37: 0 | P37: 0 | X37: 2034 | AB37: fuel Consumption | AD37: =AD49/AD48*AD36 -> 0 | AG37: =AG49/AG48*AG36 -> 0 | AJ37: =AJ49/AJ48*AJ36 -> 0 | AM37: =IFERROR(AM49/AM48*AM36,0) -> 0 | AO37: =IFERROR(AO49/AO48*AO36,0) -> 0 | BO37: 2032 | BP37: 4.179752932 | BQ37: 4.157315641 | BR37: 10.32335418 | BS37: 6.610394671 | CS37: AMBAG | CT37: 2033 | CU37: 7.935138819 | CV37: 6.55 | CW37: 6.99
B38: 2000 | C38: AMBAG | D38: LDA | E38: PHEV | F38: 0 | G38: 0 | H38: 0 | I38: 0 | J38: 0 | K38: 0 | L38: 0 | M38: 0 | N38: 0 | O38: 0 | P38: 0 | X38: 2035 | BO38: 2033 | BP38: 4.179752932 | BQ38: 4.157315641 | BR38: 10.32335418 | BS38: 6.610394671 | CS38: AMBAG | CT38: 2034 | CU38: 7.935138819 | CV38: 6.55 | CW38: 6.99
B39: 2000 | C39: AMBAG | D39: LDA | E39: PHEV | F39: 0 | G39: 0 | H39: 0 | I39: 0 | J39: 0 | K39: 0 | L39: 0 | M39: 0 | N39: 0 | O39: 0 | P39: 0 | X39: 2036 | AB39: fuel Efficiency | AD39: =AD53/AD54 -> 29.97469694 | AG39: =AG53/AG54 -> 40.64702376 | AJ39: =AJ53/AJ54 -> 121.0634707 | AM39: =IFERROR(AM53/AM54,) -> 79.31950237 | AO39: =IFERROR(AO53/AO54,0) -> 65.44468342 | BO39: 2034 | BP39: 4.179752932 | BQ39: 4.157315641 | BR39: 10.32335418 | BS39: 6.610394671 | CS39: AMBAG | CT39: 2035 | CU39: 7.935138819 | CV39: 6.55 | CW39: 6.99
B40: 2000 | C40: AMBAG | D40: LDT1 | E40: PHEV | F40: 0 | G40: 0 | H40: 0 | I40: 0 | J40: 0 | K40: 0 | L40: 0 | M40: 0 | N40: 0 | O40: 0 | P40: 0 | X40: 2037 | AB40: Fuel cost | AD40: =AD33/AD39*100 -> 13.00394625 | AG40: =AG33/AG39*100 -> 9.288110125 | AJ40: =AJ33/AJ39*100 -> 5.429347981 | AM40: =IFERROR(AM33/AM39*100,0) -> 15.8378261 | AO40: =SUMIF(BI27:BI27,"<>#DIV/0!") -> 0 | BO40: 2035 | BP40: 4.179752932 | BQ40: 4.157315641 | BR40: 10.32335418 | BS40: 6.610394671 | CS40: AMBAG | CT40: 2036 | CU40: 7.935138819 | CV40: 6.55 | CW40: 6.99
B41: 2000 | C41: AMBAG | D41: LDT1 | E41: PHEV | F41: 0 | G41: 0 | H41: 0 | I41: 0 | J41: 0 | K41: 0 | L41: 0 | M41: 0 | N41: 0 | O41: 0 | P41: 0 | X41: 2038 | AB41: total AAO cost | AD41: =AD34+AD40 -> 20.93908507 | AG41: =AG34+AG40 -> 17.22324894 | AJ41: =AJ34+AJ40 -> 11.97934798 | AM41: =IFERROR(AM34+AM40,0) -> 23.77296492 | AO41: =SUMIF(BB30:BB30,"<>#DIV/0!") -> 0 | BO41: 2036 | BP41: 4.179752932 | BQ41: 4.157315641 | BR41: 10.32335418 | BS41: 6.610394671 | CS41: AMBAG | CT41: 2037 | CU41: 7.935138819 | CV41: 6.55 | CW41: 6.99
B42: 2000 | C42: BCAG | D42: LDT1 | E42: DIESEL | F42: 92.9247431 | G42: 92.9247431 | H42: 0 | I42: 2392.186917 | J42: 2392.186917 | K42: 0 | L42: 389.6310709 | M42: 389.6310709 | N42: 0 | O42: 0.09761191548 | P42: 0 | X42: 2039 | BO42: 2037 | BP42: 4.179752932 | BQ42: 4.157315641 | BR42: 10.32335418 | BS42: 6.610394671 | CS42: AMBAG | CT42: 2038 | CU42: 7.935138819 | CV42: 6.55 | CW42: 6.99
B43: 2000 | C43: BCAG | D43: LDT2 | E43: DIESEL | F43: 5.134898717 | G43: 5.134898717 | H43: 0 | I43: 131.6867253 | J43: 131.6867253 | K43: 0 | L43: 21.53308724 | M43: 21.53308724 | N43: 0 | O43: 0.006341337327 | P43: 0 | X43: 2040 | AD43: =AD41*(AD36/AQ36)+AG41*(AG36/AQ36)+AJ41*(AJ36/AQ36)+AM41*(AM36/AQ36)+AO41*(AO36/AQ36) ->  | BO43: 2038 | BP43: 4.179752932 | BQ43: 4.157315641 | BR43: 10.32335418 | BS43: 6.610394671 | CS43: AMBAG | CT43: 2039 | CU43: 7.935138819 | CV43: 6.55 | CW43: 6.99
B44: 2000 | C44: BCAG | D44: MDV | E44: DIESEL | F44: 224.650016 | G44: 224.650016 | H44: 0 | I44: 4982.254566 | J44: 4982.254566 | K44: 0 | L44: 939.1614297 | M44: 939.1614297 | N44: 0 | O44: 0.2699366595 | P44: 0 | X44: 2041 | BO44: 2039 | BP44: 4.179752932 | BQ44: 4.157315641 | BR44: 10.32335418 | BS44: 6.610394671 | CS44: AMBAG | CT44: 2040 | CU44: 7.935138819 | CV44: 6.55 | CW44: 6.99
B45: 2000 | C45: BCAG | D45: LDA | E45: ELECTRIC | F45: 2.264668205 | G45: 0 | H45: 2.264668205 | I45: 34.5343113 | J45: 0 | K45: 34.5343113 | L45: 8.711945747 | M45: 0 | N45: 8.711945747 | O45: 0 | P45: 0.0003369687735 | X45: 2042 | BO45: 2040 | BP45: 4.179752932 | BQ45: 4.157315641 | BR45: 10.32335418 | BS45: 6.610394671 | CS45: AMBAG | CT45: 2041 | CU45: 7.935138819 | CV45: 6.55 | CW45: 6.99
B46: 2000 | C46: BCAG | D46: LDT1 | E46: ELECTRIC | F46: 6.120023953 | G46: 0 | H46: 6.120023953 | I46: 134.722358 | J46: 0 | K46: 134.722358 | L46: 26.61107376 | M46: 0 | N46: 26.61107376 | O46: 0 | P46: 0.001528426234 | X46: 2043 | AB46: Default fuel cost | AD46: =SUMIFS($BP$6:$BP$55,$BO$6:$BO$55,$AH$5) -> 3.897893478 | AG46: =SUMIFS($BQ$6:$BQ$55, $BO$6:$BO$55, $AH$5) -> 3.775340329 | AJ46: =SUMIFS($BS$6:$BS$55, $BO$6:$BO$55, $AH$5) -> 6.572957103 | AM46: =SUMIFS($BR$6:$BR$55, $BO$6:$BO$55, $AH$5) -> 12.56248485 | BO46: 2041 | BP46: 4.179752932 | BQ46: 4.157315641 | BR46: 10.32335418 | BS46: 6.610394671 | CS46: AMBAG | CT46: 2042 | CU46: 7.935138819 | CV46: 6.55 | CW46: 6.99
B47: 2000 | C47: BCAG | D47: LDA | E47: GAS | F47: 73165.38694 | G47: 73165.38694 | H47: 0 | I47: 2470090.405 | J47: 2470090.405 | K47: 0 | L47: 333292.2063 | M47: 333292.2063 | N47: 0 | O47: 109.3937062 | P47: 0 | X47: 2044 | AB47: Default other cost | AD47: =SUMIFS(CU$4:CU$921,CS$4:CS$921,AH4,CT$4:CT$921,AH5) -> 7.935138819 | AG47: =SUMIFS(CU$4:CU$921,CS$4:CS$921,AH4,CT$4:CT$921,AH5) -> 7.935138819 | AJ47: =SUMIFS(CV$4:CV$921,CS$4:CS$921,AH4,CT$4:CT$921,AH5) -> 6.55 | AM47: =SUMIFS(CU$4:CU$921,CS$4:CS$921,AH4,CT$4:CT$921,AH5) -> 7.935138819 | AO47: =SUMIFS(CW$4:CW$870,CS$4:CS$870,AH4,CT$4:CT$870,AH5) -> 6.99 | BO47: 2042 | BP47: 4.179752932 | BQ47: 4.157315641 | BR47: 10.32335418 | BS47: 6.610394671 | CS47: AMBAG | CT47: 2043 | CU47: 7.935138819 | CV47: 6.55 | CW47: 6.99
B48: 2000 | C48: BCAG | D48: LDT1 | E48: GAS | F48: 19153.64092 | G48: 19153.64092 | H48: 0 | I48: 548650.5726 | J48: 548650.5726 | K48: 0 | L48: 81477.87804 | M48: 81477.87804 | N48: 0 | O48: 29.19289438 | P48: 0 | X48: 2045 | AB48: Default VMT | AD48: =SUMIFS($J$3:$J43279, $B$3:$B43279, $AH$5, $C$3:$C43279, $AH$4, $D$3:$D43279, "LDA", $E$3:$E43279, "GAS") + SUMIFS($J$3:$J43279, $B$3:$B43279, $AH$5, $C$3:$C43279, $AH$4, $D$3:$D43279, "LDT1", $E$3:$E43279, "GAS") + SUMIFS($J$3:$J43279, $B$3:$B43279, $AH$5, $C$3:$C43279, $AH$4, $D$3:$D43279, "LDT2", $E$3:$E43279, "GAS") + SUMIFS($J$3:$J43279, $B$3:$B43279, $AH$5, $C$3:$C43279, $AH$4, $D$3:$D43279, "MDV", $E$3:$E43279, "GAS") -> 17988856.31 | AG48: =SUMIFS($J$3:$J43279, $B$3:$B43279, $AH$5, $C$3:$C43279, $AH$4, $D$3:$D43279, "LDA", $E$3:$E43279, "DIESEL") + SUMIFS($J$3:$J43279, $B$3:$B43279, $AH$5, $C$3:$C43279, $AH$4, $D$3:$D43279, "LDT1", $E$3:$E43279, "DIESEL") + SUMIFS($J$3:$J43279, $B$3:$B43279, $AH$5, $C$3:$C43279, $AH$4, $D$3:$D43279, "LDT2", $E$3:$E43279, "DIESEL") + SUMIFS($J$3:$J43279, $B$3:$B43279, $AH$5, $C$3:$C43279, $AH$4, $D$3:$D43279, "MDV", $E$3:$E43279, "DIESEL") -> 253177.8522 | AJ48: =SUMIFS($K$3:$K43279, $B$3:$B43279, $AH$5, $C$3:$C43279, $AH$4, $D$3:$D43279, "LDA", $E$3:$E43279, "ELECTRIC") + SUMIFS($K$3:$K43279, $B$3:$B43279, $AH$5, $C$3:$C43279, $AH$4, $D$3:$D43279, "LDT1", $E$3:$E43279, "ELECTRIC") + SUMIFS($K$3:$K43279, $B$3:$B43279, $AH$5, $C$3:$C43279, $AH$4, $D$3:$D43279, "LDT2", $E$3:$E43279, "ELECTRIC") + SUMIFS($K$3:$K43279, $B$3:$B43279, $AH$5, $C$3:$C43279, $AH$4, $D$3:$D43279, "MDV", $E$3:$E43279, "ELECTRIC") -> 180826.8356 | AM48: =SUMIFS($K$3:$K43279, $B$3:$B43279, $AH$5, $C$3:$C43279, $AH$4, $D$3:$D43279, "LDA", $E$3:$E43279, "HYDROGEN") + SUMIFS($K$3:$K43279, $B$3:$B43279, $AH$5, $C$3:$C43279, $AH$4, $D$3:$D43279, "LDT1", $E$3:$E43279, "HYDROGEN") + SUMIFS($K$3:$K43279, $B$3:$B43279, $AH$5, $C$3:$C43279, $AH$4, $D$3:$D43279, "LDT2", $E$3:$E43279, "HYDROGEN") + SUMIFS($K$3:$K43279, $B$3:$B43279, $AH$5, $C$3:$C43279, $AH$4, $D$3:$D43279, "MDV", $E$3:$E43279, "HYDROGEN") -> 63309.12845 | AO48: =BJ16 -> 382195.1774 | BO48: 2043 | BP48: 4.179752932 | BQ48: 4.157315641 | BR48: 10.32335418 | BS48: 6.610394671 | CS48: AMBAG | CT48: 2044 | CU48: 7.935138819 | CV48: 6.55 | CW48: 6.99
B49: 2000 | C49: BCAG | D49: LDT2 | E49: GAS | F49: 27816.716 | G49: 27816.716 | H49: 0 | I49: 983682.8349 | J49: 983682.8349 | K49: 0 | L49: 128512.8894 | M49: 128512.8894 | N49: 0 | O49: 59.11841318 | P49: 0 | X49: 2046 | AB49: Default fuel Consumption | AD49: =(SUMIFS($O$3:$O43281, $B$3:$B43281, $AH$5, $C$3:$C43281, $AH$4, $D$3:$D43281, "LDA", $E$3:$E43281, "GAS") + SUMIFS($O$3:$O43281, $B$3:$B43281, $AH$5, $C$3:$C43281, $AH$4, $D$3:$D43281, "LDT1", $E$3:$E43281, "GAS") + SUMIFS($O$3:$O43281, $B$3:$B43281, $AH$5, $C$3:$C43281, $AH$4, $D$3:$D43281, "LDT2", $E$3:$E43281, "GAS") + SUMIFS($O$3:$O43281, $B$3:$B43281, $AH$5, $C$3:$C43281, $AH$4, $D$3:$D43281, "MDV", $E$3:$E43281, "GAS") ) * 1000 -> 636293.8095 | AG49: =(SUMIFS($O$3:$O43281, $B$3:$B43281, $AH$5, $C$3:$C43281, $AH$4, $D$3:$D43281, "LDA", $E$3:$E43281, "DIESEL") + SUMIFS($O$3:$O43281, $B$3:$B43281, $AH$5, $C$3:$C43281, $AH$4, $D$3:$D43281, "LDT1", $E$3:$E43281, "DIESEL") + SUMIFS($O$3:$O43281, $B$3:$B43281, $AH$5, $C$3:$C43281, $AH$4, $D$3:$D43281, "LDT2", $E$3:$E43281, "DIESEL") + SUMIFS($O$3:$O43281, $B$3:$B43281, $AH$5, $C$3:$C43281, $AH$4, $D$3:$D43281, "MDV", $E$3:$E43281, "DIESEL") ) * 1000 -> 6685.563645 | AJ49: =(SUMIFS($P$3:$P43281, $B$3:$B43281, $AH$5, $C$3:$C43281, $AH$4, $D$3:$D43281, "LDA", $E$3:$E43281, "ELECTRIC") + SUMIFS($P$3:$P43281, $B$3:$B43281, $AH$5, $C$3:$C43281, $AH$4, $D$3:$D43281, "LDT1", $E$3:$E43281, "ELECTRIC") + SUMIFS($P$3:$P43281, $B$3:$B43281, $AH$5, $C$3:$C43281, $AH$4, $D$3:$D43281, "LDT2", $E$3:$E43281, "ELECTRIC") + SUMIFS($P$3:$P43281, $B$3:$B43281, $AH$5, $C$3:$C43281, $AH$4, $D$3:$D43281, "MDV", $E$3:$E43281, "ELECTRIC") ) * 1000 -> 1496.993598 | AM49: =(SUMIFS($P$3:$P43281, $B$3:$B43281, $AH$5, $C$3:$C43281, $AH$4, $D$3:$D43281, "LDA", $E$3:$E43281, "HYDROGEN") + SUMIFS($P$3:$P43281, $B$3:$B43281, $AH$5, $C$3:$C43281, $AH$4, $D$3:$D43281, "LDT1", $E$3:$E43281, "HYDROGEN") + SUMIFS($P$3:$P43281, $B$3:$B43281, $AH$5, $C$3:$C43281, $AH$4, $D$3:$D43281, "LDT2", $E$3:$E43281, "HYDROGEN") + SUMIFS($P$3:$P43281, $B$3:$B43281, $AH$5, $C$3:$C43281, $AH$4, $D$3:$D43281, "MDV", $E$3:$E43281, "HYDROGEN") ) * 1000 -> 799.2855845 | AO49: =BJ21 -> 5968.756756 | BO49: 2044 | BP49: 4.179752932 | BQ49: 4.157315641 | BR49: 10.32335418 | BS49: 6.610394671 | CS49: AMBAG | CT49: 2045 | CU49: 7.935138819 | CV49: 6.55 | CW49: 6.99
B50: 2000 | C50: BCAG | D50: MDV | E50: GAS | F50: 13608.76173 | G50: 13608.76173 | H50: 0 | I50: 517074.7556 | J50: 517074.7556 | K50: 0 | L50: 63754.21506 | M50: 63754.21506 | N50: 0 | O50: 32.41901221 | P50: 0 | X50: 2047 | AB50: Default Efficiency | AC50: gallon/mile | AD50: =AD49/AD48 -> 0.0353715544 | AG50: =AG49/AG48 -> 0.02640658962 | AJ50: =AJ49/AJ48 -> 0.00827860308 | AM50: =AM49/AM48 -> 0.0126251238 | AO50: =AO49/AO48 -> 0.01561703839 | BO50: 2045 | BP50: 4.179752932 | BQ50: 4.157315641 | BR50: 10.32335418 | BS50: 6.610394671 | CS50: AMBAG | CT50: 2046 | CU50: 7.935138819 | CV50: 6.55 | CW50: 6.99
B51: 2000 | C51: BCAG | D51: LDA | E51: HYDROGEN | F51: 0 | G51: 0 | H51: 0 | I51: 0 | J51: 0 | K51: 0 | L51: 0 | M51: 0 | N51: 0 | O51: 0 | P51: 0 | X51: 2048 | BO51: 2046 | BP51: 4.179752932 | BQ51: 4.157315641 | BR51: 10.32335418 | BS51: 6.610394671 | CS51: AMBAG | CT51: 2047 | CU51: 7.935138819 | CV51: 6.55 | CW51: 6.99
B52: 2000 | C52: BCAG | D52: LDT1 | E52: HYDROGEN | F52: 0 | G52: 0 | H52: 0 | I52: 0 | J52: 0 | K52: 0 | L52: 0 | M52: 0 | N52: 0 | O52: 0 | P52: 0 | X52: 2049 | BO52: 2047 | BP52: 4.179752932 | BQ52: 4.157315641 | BR52: 10.32335418 | BS52: 6.610394671 | CS52: AMBAG | CT52: 2048 | CU52: 7.935138819 | CV52: 6.55 | CW52: 6.99
B53: 2000 | C53: BCAG | D53: LDA | E53: PHEV | F53: 0 | G53: 0 | H53: 0 | I53: 0 | J53: 0 | K53: 0 | L53: 0 | M53: 0 | N53: 0 | O53: 0 | P53: 0 | X53: 2050 | AB53: Default Statewide VMT | AD53: =SUMIFS($J$3:$J43279, $B$3:$B43279, $AH$5, $D$3:$D43279, "LDA", $E$3:$E43279, "GAS") + SUMIFS($J$3:$J43279, $B$3:$B43279, $AH$5, $D$3:$D43279, "LDT1", $E$3:$E43279, "GAS") + SUMIFS($J$3:$J43279, $B$3:$B43279, $AH$5, $D$3:$D43279, "LDT2", $E$3:$E43279, "GAS") + SUMIFS($J$3:$J43279, $B$3:$B43279, $AH$5, $D$3:$D43279, "MDV", $E$3:$E43279, "GAS") -> 939789576.7 | AG53: =SUMIFS($J$3:$J43279, $B$3:$B43279, $AH$5, $D$3:$D43279, "LDA", $E$3:$E43279, "DIESEL") + SUMIFS($J$3:$J43279, $B$3:$B43279, $AH$5, $D$3:$D43279, "LDT1", $E$3:$E43279, "DIESEL") + SUMIFS($J$3:$J43279, $B$3:$B43279, $AH$5, $D$3:$D43279, "LDT2", $E$3:$E43279, "DIESEL") + SUMIFS($J$3:$J43279, $B$3:$B43279, $AH$5, $D$3:$D43279, "MDV", $E$3:$E43279, "DIESEL") -> 11699597.1 | AJ53: =SUMIFS($K$3:$K43284, $B$3:$B43284, $AH$5, $D$3:$D43284, "LDA", $E$3:$E43284, "ELECTRIC") + SUMIFS($K$3:$K43284, $B$3:$B43284, $AH$5, $D$3:$D43284, "LDT1", $E$3:$E43284, "ELECTRIC") + SUMIFS($K$3:$K43284, $B$3:$B43284, $AH$5, $D$3:$D43284, "LDT2", $E$3:$E43284, "ELECTRIC") + SUMIFS($K$3:$K43284, $B$3:$B43284, $AH$5, $D$3:$D43284, "MDV", $E$3:$E43284, "ELECTRIC") -> 10590863.16 | AM53: =SUMIFS($K$3:$K43279, $B$3:$B43279, $AH$5, $D$3:$D43279, "LDA", $E$3:$E43279, "HYDROGEN") + SUMIFS($K$3:$K43279, $B$3:$B43279, $AH$5, $D$3:$D43279, "LDT1", $E$3:$E43279, "HYDROGEN") + SUMIFS($K$3:$K43279, $B$3:$B43279, $AH$5, $D$3:$D43279, "LDT2", $E$3:$E43279, "HYDROGEN") + SUMIFS($K$3:$K43279, $B$3:$B43279, $AH$5, $D$3:$D43279, "MDV", $E$3:$E43279, "HYDROGEN") -> 3811568.387 | AO53: =BB16 -> 21854959.84 | BO53: 2048 | BP53: 4.179752932 | BQ53: 4.157315641 | BR53: 10.32335418 | BS53: 6.610394671 | CS53: AMBAG | CT53: 2049 | CU53: 7.935138819 | CV53: 6.55 | CW53: 6.99
B54: 2000 | C54: BCAG | D54: LDT1 | E54: PHEV | F54: 0 | G54: 0 | H54: 0 | I54: 0 | J54: 0 | K54: 0 | L54: 0 | M54: 0 | N54: 0 | O54: 0 | P54: 0 | AB54: Default Statewide fuel Consumption | AD54: =(SUMIFS($O$3:$O43281, $B$3:$B43281, $AH$5, $D$3:$D43281, "LDA", $E$3:$E43281, "GAS") + SUMIFS($O$3:$O43281, $B$3:$B43281, $AH$5, $D$3:$D43281, "LDT1", $E$3:$E43281, "GAS") + SUMIFS($O$3:$O43281, $B$3:$B43281, $AH$5, $D$3:$D43281, "LDT2", $E$3:$E43281, "GAS") + SUMIFS($O$3:$O43281, $B$3:$B43281, $AH$5, $D$3:$D43281, "MDV", $E$3:$E43281, "GAS") ) * 1000 -> 31352763.26 | AG54: =(SUMIFS($O$3:$O43281, $B$3:$B43281, $AH$5, $D$3:$D43281, "LDA", $E$3:$E43281, "DIESEL") + SUMIFS($O$3:$O43281, $B$3:$B43281, $AH$5, $D$3:$D43281, "LDT1", $E$3:$E43281, "DIESEL") + SUMIFS($O$3:$O43281, $B$3:$B43281, $AH$5, $D$3:$D43281, "LDT2", $E$3:$E43281, "DIESEL") + SUMIFS($O$3:$O43281, $B$3:$B43281, $AH$5, $D$3:$D43281, "MDV", $E$3:$E43281, "DIESEL") ) * 1000 -> 287834.041 | AJ54: =(SUMIFS($P$3:$P43286, $B$3:$B43286, $AH$5, $D$3:$D43286, "LDA", $E$3:$E43286, "ELECTRIC") + SUMIFS($P$3:$P43286, $B$3:$B43286, $AH$5, $D$3:$D43286, "LDT1", $E$3:$E43286, "ELECTRIC") + SUMIFS($P$3:$P43286, $B$3:$B43286, $AH$5, $D$3:$D43286, "LDT2", $E$3:$E43286, "ELECTRIC") + SUMIFS($P$3:$P43286, $B$3:$B43286, $AH$5, $D$3:$D43286, "MDV", $E$3:$E43286, "ELECTRIC") ) * 1000 -> 87481.90598 | AM54: =(SUMIFS($P$3:$P43281, $B$3:$B43281, $AH$5, $D$3:$D43281, "LDA", $E$3:$E43281, "HYDROGEN") + SUMIFS($P$3:$P43281, $B$3:$B43281, $AH$5, $D$3:$D43281, "LDT1", $E$3:$E43281, "HYDROGEN") + SUMIFS($P$3:$P43281, $B$3:$B43281, $AH$5, $D$3:$D43281, "LDT2", $E$3:$E43281, "HYDROGEN") + SUMIFS($P$3:$P43281, $B$3:$B43281, $AH$5, $D$3:$D43281, "MDV", $E$3:$E43281, "HYDROGEN") ) * 1000 -> 48053.35728 | AO54: =BB21 -> 333945.5353 | BO54: 2049 | BP54: 4.179752932 | BQ54: 4.157315641 | BR54: 10.32335418 | BS54: 6.610394671 | CS54: AMBAG | CT54: 2050 | CU54: 7.935138819 | CV54: 6.55 | CW54: 6.99
B55: 2000 | C55: COFCG | D55: LDA | E55: DIESEL | F55: 2040.223715 | G55: 2040.223715 | H55: 0 | I55: 52908.46572 | J55: 52908.46572 | K55: 0 | L55: 8548.449063 | M55: 8548.449063 | N55: 0 | O55: 1.785683855 | P55: 0 | BO55: 2050 | BP55: 4.179752932 | BQ55: 4.157315641 | BR55: 10.32335418 | BS55: 6.610394671 | CS55: BCAG | CT55: 2000 | CU55: 7.660049464 | CV55: 6.55 | CW55: 6.99
B56: 2000 | C56: COFCG | D56: LDT1 | E56: DIESEL | F56: 254.9323485 | G56: 254.9323485 | H56: 0 | I56: 7368.618782 | J56: 7368.618782 | K56: 0 | L56: 1077.233683 | M56: 1077.233683 | N56: 0 | O56: 0.2935328641 | P56: 0 | BO56: Notes: | CS56: BCAG | CT56: 2001 | CU56: 8.04246639 | CV56: 6.55 | CW56: 6.99
B57: 2000 | C57: COFCG | D57: LDT2 | E57: DIESEL | F57: 5.817510366 | G57: 5.817510366 | H57: 0 | I57: 161.6378081 | J57: 161.6378081 | K57: 0 | L57: 24.27866914 | M57: 24.27866914 | N57: 0 | O57: 0.007604264641 | P57: 0 | BO57: 1. CEC provided historical gasoline and diesel fuel prices from 2000-2017 ($2015). | CS57: BCAG | CT57: 2002 | CU57: 8.10909151 | CV57: 6.55 | CW57: 6.99
B58: 2000 | C58: COFCG | D58: MDV | E58: DIESEL | F58: 496.7040582 | G58: 496.7040582 | H58: 0 | I58: 12631.40257 | J58: 12631.40257 | K58: 0 | L58: 2072.878336 | M58: 2072.878336 | N58: 0 | O58: 0.6750563956 | P58: 0 | BO58: 2. CEC provided projected gasoline and diesel fuel prices from 2018-2030 ($2015). | CS58: BCAG | CT58: 2003 | CU58: 7.925484454 | CV58: 6.55 | CW58: 6.99
B59: 2000 | C59: COFCG | D59: LDA | E59: ELECTRIC | F59: 10.56591387 | G59: 0 | H59: 10.56591387 | I59: 253.9961452 | J59: 0 | K59: 253.9961452 | L59: 47.14902719 | M59: 0 | N59: 47.14902719 | O59: 0 | P59: 0.002478369086 | BO59: 3. CEC provided hydrogen fuel prices from 2015-2030 ($2015). | CS59: BCAG | CT59: 2004 | CU59: 8.077028037 | CV59: 6.55 | CW59: 6.99
B60: 2000 | C60: COFCG | D60: LDT1 | E60: ELECTRIC | F60: 4.617100478 | G60: 0 | H60: 4.617100478 | I60: 110.4141895 | J60: 0 | K60: 110.4141895 | L60: 20.67007817 | M60: 0 | N60: 20.67007817 | O60: 0 | P60: 0.001252649868 | BO60: 4. CEC provided electricity prices from 2015-2030 ($2015). | CS60: BCAG | CT60: 2005 | CU60: 7.676587729 | CV60: 6.55 | CW60: 6.99
B61: 2000 | C61: COFCG | D61: LDA | E61: GAS | F61: 278570.471 | G61: 278570.471 | H61: 0 | I61: 10685423.56 | J61: 10685423.56 | K61: 0 | L61: 1293127.708 | M61: 1293127.708 | N61: 0 | O61: 454.1816934 | P61: 0 | BO61: 5. All CEC values, for all fuels and electricity, increased 1.69% per year from 2031-2050 (highlighted in blue). | CS61: BCAG | CT61: 2006 | CU61: 7.335495671 | CV61: 6.55 | CW61: 6.99
B62: 2000 | C62: COFCG | D62: LDT1 | E62: GAS | F62: 56426.89993 | G62: 56426.89993 | H62: 0 | I62: 1994335.359 | J62: 1994335.359 | K62: 0 | L62: 252674.6027 | M62: 252674.6027 | N62: 0 | O62: 97.49176338 | P62: 0 | BO62: 6. CEC values, for hydrogen and electricity, decreased by 1.69% per year from 2000-2014 (highlighted in blue). | CS62: BCAG | CT62: 2007 | CU62: 7.182014286 | CV62: 6.55 | CW62: 6.99
B63: 2000 | C63: COFCG | D63: LDT2 | E63: GAS | F63: 83868.15766 | G63: 83868.15766 | H63: 0 | I63: 3304442.258 | J63: 3304442.258 | K63: 0 | L63: 392237.8625 | M63: 392237.8625 | N63: 0 | O63: 193.7048492 | P63: 0 | BO63: 7. The CEC data was originally provided in $2015; a conversion factor of 1.034 was applied to convert to $2017. (CEC provided the conversion factor.) | CS63: BCAG | CT63: 2008 | CU63: 6.732244722 | CV63: 6.55 | CW63: 6.99
B64: 2000 | C64: COFCG | D64: MDV | E64: GAS | F64: 53074.54516 | G64: 53074.54516 | H64: 0 | I64: 2200870.308 | J64: 2200870.308 | K64: 0 | L64: 253500.9183 | M64: 253500.9183 | N64: 0 | O64: 133.8508076 | P64: 0 | BO64: 8. The CEC diesel fuel data was originally provided in $/DGE; a conversion factor of 0.86 was applied to convert to $/GGE. (CEC provided the conversion factor.) | CS64: BCAG | CT64: 2009 | CU64: 6.525749498 | CV64: 6.55 | CW64: 6.99
B65: 2000 | C65: COFCG | D65: LDA | E65: HYDROGEN | F65: 0 | G65: 0 | H65: 0 | I65: 0 | J65: 0 | K65: 0 | L65: 0 | M65: 0 | N65: 0 | O65: 0 | P65: 0 | CS65: BCAG | CT65: 2010 | CU65: 6.459210718 | CV65: 6.55 | CW65: 6.99
B66: 2000 | C66: COFCG | D66: LDT1 | E66: HYDROGEN | F66: 0 | G66: 0 | H66: 0 | I66: 0 | J66: 0 | K66: 0 | L66: 0 | M66: 0 | N66: 0 | O66: 0 | P66: 0 | CS66: BCAG | CT66: 2011 | CU66: 6.395585319 | CV66: 6.55 | CW66: 6.99
B67: 2000 | C67: COFCG | D67: LDA | E67: PHEV | F67: 0 | G67: 0 | H67: 0 | I67: 0 | J67: 0 | K67: 0 | L67: 0 | M67: 0 | N67: 0 | O67: 0 | P67: 0 | CS67: BCAG | CT67: 2012 | CU67: 6.311208442 | CV67: 6.55 | CW67: 6.99
B68: 2000 | C68: COFCG | D68: LDT1 | E68: PHEV | F68: 0 | G68: 0 | H68: 0 | I68: 0 | J68: 0 | K68: 0 | L68: 0 | M68: 0 | N68: 0 | O68: 0 | P68: 0 | CS68: BCAG | CT68: 2013 | CU68: 6.763908103 | CV68: 6.55 | CW68: 6.99
B69: 2000 | C69: KCAG | D69: LDA | E69: DIESEL | F69: 434.2867029 | G69: 434.2867029 | H69: 0 | I69: 11890.31553 | J69: 11890.31553 | K69: 0 | L69: 1813.214186 | M69: 1813.214186 | N69: 0 | O69: 0.4028359214 | P69: 0 | CS69: BCAG | CT69: 2014 | CU69: 6.710502954 | CV69: 6.55 | CW69: 6.99
B70: 2000 | C70: KCAG | D70: LDT1 | E70: DIESEL | F70: 44.74110545 | G70: 44.74110545 | H70: 0 | I70: 1329.26472 | J70: 1329.26472 | K70: 0 | L70: 190.3415543 | M70: 190.3415543 | N70: 0 | O70: 0.05390641443 | P70: 0 | CS70: BCAG | CT70: 2015 | CU70: 6.741359624 | CV70: 6.55 | CW70: 6.99
B71: 2000 | C71: KCAG | D71: LDT2 | E71: DIESEL | F71: 1.963067484 | G71: 1.963067484 | H71: 0 | I71: 61.06422044 | J71: 61.06422044 | K71: 0 | L71: 8.552705229 | M71: 8.552705229 | N71: 0 | O71: 0.002738917485 | P71: 0 | CS71: BCAG | CT71: 2016 | CU71: 6.81065871 | CV71: 6.55 | CW71: 6.99
B72: 2000 | C72: KCAG | D72: MDV | E72: DIESEL | F72: 131.9189664 | G72: 131.9189664 | H72: 0 | I72: 3145.468755 | J72: 3145.468755 | K72: 0 | L72: 550.0458474 | M72: 550.0458474 | N72: 0 | O72: 0.1678508878 | P72: 0 | CS72: BCAG | CT72: 2017 | CU72: 7.952906473 | CV72: 6.55 | CW72: 6.99
B73: 2000 | C73: KCAG | D73: LDA | E73: ELECTRIC | F73: 1.889516433 | G73: 0 | H73: 1.889516433 | I73: 54.85838241 | J73: 0 | K73: 54.85838241 | L73: 8.950656918 | M73: 0 | N73: 8.950656918 | O73: 0 | P73: 0.0005352810333 | CS73: BCAG | CT73: 2018 | CU73: 7.952906473 | CV73: 6.55 | CW73: 6.99
B74: 2000 | C74: KCAG | D74: LDT1 | E74: ELECTRIC | F74: 1.856873731 | G74: 0 | H74: 1.856873731 | I74: 49.82665451 | J74: 0 | K74: 49.82665451 | L74: 8.628318064 | M74: 0 | N74: 8.628318064 | O74: 0 | P74: 0.000565283796 | CS74: BCAG | CT74: 2019 | CU74: 7.952906473 | CV74: 6.55 | CW74: 6.99
B75: 2000 | C75: KCAG | D75: LDA | E75: GAS | F75: 55920.98872 | G75: 55920.98872 | H75: 0 | I75: 2235090.825 | J75: 2235090.825 | K75: 0 | L75: 260184.0233 | M75: 260184.0233 | N75: 0 | O75: 95.97724406 | P75: 0 | CS75: BCAG | CT75: 2020 | CU75: 7.952906473 | CV75: 6.55 | CW75: 6.99
B76: 2000 | C76: KCAG | D76: LDT1 | E76: GAS | F76: 12353.14064 | G76: 12353.14064 | H76: 0 | I76: 436455.6307 | J76: 436455.6307 | K76: 0 | L76: 55562.0147 | M76: 55562.0147 | N76: 0 | O76: 21.69409655 | P76: 0 | CS76: BCAG | CT76: 2021 | CU76: 7.952906473 | CV76: 6.55 | CW76: 6.99
B77: 2000 | C77: KCAG | D77: LDT2 | E77: GAS | F77: 16842.05235 | G77: 16842.05235 | H77: 0 | I77: 658265.071 | J77: 658265.071 | K77: 0 | L77: 79169.45561 | M77: 79169.45561 | N77: 0 | O77: 38.90608433 | P77: 0 | CS77: BCAG | CT77: 2022 | CU77: 7.952906473 | CV77: 6.55 | CW77: 6.99
B78: 2000 | C78: KCAG | D78: MDV | E78: GAS | F78: 10917.76927 | G78: 10917.76927 | H78: 0 | I78: 469351.3085 | J78: 469351.3085 | K78: 0 | L78: 52426.16315 | M78: 52426.16315 | N78: 0 | O78: 28.59088008 | P78: 0 | CS78: BCAG | CT78: 2023 | CU78: 7.952906473 | CV78: 6.55 | CW78: 6.99
B79: 2000 | C79: KCAG | D79: LDA | E79: HYDROGEN | F79: 0 | G79: 0 | H79: 0 | I79: 0 | J79: 0 | K79: 0 | L79: 0 | M79: 0 | N79: 0 | O79: 0 | P79: 0 | CS79: BCAG | CT79: 2024 | CU79: 7.952906473 | CV79: 6.55 | CW79: 6.99
B80: 2000 | C80: KCAG | D80: LDT1 | E80: HYDROGEN | F80: 0 | G80: 0 | H80: 0 | I80: 0 | J80: 0 | K80: 0 | L80: 0 | M80: 0 | N80: 0 | O80: 0 | P80: 0 | CS80: BCAG | CT80: 2025 | CU80: 7.952906473 | CV80: 6.55 | CW80: 6.99
B81: 2000 | C81: KCAG | D81: LDA | E81: PHEV | F81: 0 | G81: 0 | H81: 0 | I81: 0 | J81: 0 | K81: 0 | L81: 0 | M81: 0 | N81: 0 | O81: 0 | P81: 0 | CS81: BCAG | CT81: 2026 | CU81: 7.952906473 | CV81: 6.55 | CW81: 6.99
B82: 2000 | C82: KCAG | D82: LDT1 | E82: PHEV | F82: 0 | G82: 0 | H82: 0 | I82: 0 | J82: 0 | K82: 0 | L82: 0 | M82: 0 | N82: 0 | O82: 0 | P82: 0 | CS82: BCAG | CT82: 2027 | CU82: 7.952906473 | CV82: 6.55 | CW82: 6.99
B83: 2000 | C83: KCOG | D83: LDA | E83: DIESEL | F83: 411.721138 | G83: 411.721138 | H83: 0 | I83: 11560.47091 | J83: 11560.47091 | K83: 0 | L83: 1723.368492 | M83: 1723.368492 | N83: 0 | O83: 0.3937235489 | P83: 0 | CS83: BCAG | CT83: 2028 | CU83: 7.952906473 | CV83: 6.55 | CW83: 6.99
B84: 2000 | C84: KCOG | D84: LDT1 | E84: DIESEL | F84: 57.77996519 | G84: 57.77996519 | H84: 0 | I84: 1676.05453 | J84: 1676.05453 | K84: 0 | L84: 243.9331003 | M84: 243.9331003 | N84: 0 | O84: 0.06832703433 | P84: 0 | CS84: BCAG | CT84: 2029 | CU84: 7.952906473 | CV84: 6.55 | CW84: 6.99
B85: 2000 | C85: KCOG | D85: LDT2 | E85: DIESEL | F85: 0.6854445954 | G85: 0.6854445954 | H85: 0 | I85: 19.26701142 | J85: 19.26701142 | K85: 0 | L85: 2.882640752 | M85: 2.882640752 | N85: 0 | O85: 0.0009107932996 | P85: 0 | CS85: BCAG | CT85: 2030 | CU85: 7.952906473 | CV85: 6.55 | CW85: 6.99
B86: 2000 | C86: KCOG | D86: MDV | E86: DIESEL | F86: 58.46520723 | G86: 58.46520723 | H86: 0 | I86: 1379.098365 | J86: 1379.098365 | K86: 0 | L86: 243.2019938 | M86: 243.2019938 | N86: 0 | O86: 0.07450445265 | P86: 0 | CS86: BCAG | CT86: 2031 | CU86: 7.952906473 | CV86: 6.55 | CW86: 6.99
B87: 2000 | C87: KCOG | D87: LDA | E87: ELECTRIC | F87: 2.344826659 | G87: 0 | H87: 2.344826659 | I87: 51.60454628 | J87: 0 | K87: 51.60454628 | L87: 10.07091639 | M87: 0 | N87: 10.07091639 | O87: 0 | P87: 0.0005035317055 | CS87: BCAG | CT87: 2032 | CU87: 7.952906473 | CV87: 6.55 | CW87: 6.99
B88: 2000 | C88: KCOG | D88: LDT1 | E88: ELECTRIC | F88: 0.6098632522 | G88: 0 | H88: 0.6098632522 | I88: 17.83699285 | J88: 0 | K88: 17.83699285 | L88: 2.895681674 | M88: 0 | N88: 2.895681674 | O88: 0 | P88: 0.0002023608273 | CS88: BCAG | CT88: 2033 | CU88: 7.952906473 | CV88: 6.55 | CW88: 6.99
B89: 2000 | C89: KCOG | D89: LDA | E89: GAS | F89: 54939.71836 | G89: 54939.71836 | H89: 0 | I89: 2248847.005 | J89: 2248847.005 | K89: 0 | L89: 254702.7903 | M89: 254702.7903 | N89: 0 | O89: 95.49963194 | P89: 0 | CS89: BCAG | CT89: 2034 | CU89: 7.952906473 | CV89: 6.55 | CW89: 6.99
B90: 2000 | C90: KCOG | D90: LDT1 | E90: GAS | F90: 13666.82784 | G90: 13666.82784 | H90: 0 | I90: 472219.3158 | J90: 472219.3158 | K90: 0 | L90: 60042.01543 | M90: 60042.01543 | N90: 0 | O90: 23.64809482 | P90: 0 | CS90: BCAG | CT90: 2035 | CU90: 7.952906473 | CV90: 6.55 | CW90: 6.99
B91: 2000 | C91: KCOG | D91: LDT2 | E91: GAS | F91: 20562.67383 | G91: 20562.67383 | H91: 0 | I91: 847120.1743 | J91: 847120.1743 | K91: 0 | L91: 96623.47071 | M91: 96623.47071 | N91: 0 | O91: 49.26864833 | P91: 0 | CS91: BCAG | CT91: 2036 | CU91: 7.952906473 | CV91: 6.55 | CW91: 6.99
B92: 2000 | C92: KCOG | D92: MDV | E92: GAS | F92: 9270.807144 | G92: 9270.807144 | H92: 0 | I92: 387245.0473 | J92: 387245.0473 | K92: 0 | L92: 44135.24171 | M92: 44135.24171 | N92: 0 | O92: 23.48367621 | P92: 0 | CS92: BCAG | CT92: 2037 | CU92: 7.952906473 | CV92: 6.55 | CW92: 6.99
B93: 2000 | C93: KCOG | D93: LDA | E93: HYDROGEN | F93: 0 | G93: 0 | H93: 0 | I93: 0 | J93: 0 | K93: 0 | L93: 0 | M93: 0 | N93: 0 | O93: 0 | P93: 0 | CS93: BCAG | CT93: 2038 | CU93: 7.952906473 | CV93: 6.55 | CW93: 6.99
B94: 2000 | C94: KCOG | D94: LDT1 | E94: HYDROGEN | F94: 0 | G94: 0 | H94: 0 | I94: 0 | J94: 0 | K94: 0 | L94: 0 | M94: 0 | N94: 0 | O94: 0 | P94: 0 | CS94: BCAG | CT94: 2039 | CU94: 7.952906473 | CV94: 6.55 | CW94: 6.99
B95: 2000 | C95: KCOG | D95: LDA | E95: PHEV | F95: 0 | G95: 0 | H95: 0 | I95: 0 | J95: 0 | K95: 0 | L95: 0 | M95: 0 | N95: 0 | O95: 0 | P95: 0 | CS95: BCAG | CT95: 2040 | CU95: 7.952906473 | CV95: 6.55 | CW95: 6.99
B96: 2000 | C96: KCOG | D96: LDT1 | E96: PHEV | F96: 0 | G96: 0 | H96: 0 | I96: 0 | J96: 0 | K96: 0 | L96: 0 | M96: 0 | N96: 0 | O96: 0 | P96: 0 | CS96: BCAG | CT96: 2041 | CU96: 7.952906473 | CV96: 6.55 | CW96: 6.99
B97: 2000 | C97: MCAG | D97: LDA | E97: DIESEL | F97: 610.897822 | G97: 610.897822 | H97: 0 | I97: 18378.43206 | J97: 18378.43206 | K97: 0 | L97: 2576.454826 | M97: 2576.454826 | N97: 0 | O97: 0.6270839832 | P97: 0 | CS97: BCAG | CT97: 2042 | CU97: 7.952906473 | CV97: 6.55 | CW97: 6.99
B98: 2000 | C98: MCAG | D98: LDT1 | E98: DIESEL | F98: 81.09049026 | G98: 81.09049026 | H98: 0 | I98: 2544.05878 | J98: 2544.05878 | K98: 0 | L98: 344.2151734 | M98: 344.2151734 | N98: 0 | O98: 0.1057605799 | P98: 0 | CS98: BCAG | CT98: 2043 | CU98: 7.952906473 | CV98: 6.55 | CW98: 6.99
B99: 2000 | C99: MCAG | D99: LDT2 | E99: DIESEL | F99: 3.426861809 | G99: 3.426861809 | H99: 0 | I99: 112.8554695 | J99: 112.8554695 | K99: 0 | L99: 14.90169952 | M99: 14.90169952 | N99: 0 | O99: 0.005071564229 | P99: 0 | CS99: BCAG | CT99: 2044 | CU99: 7.952906473 | CV99: 6.55 | CW99: 6.99
B100: 2000 | C100: MCAG | D100: MDV | E100: DIESEL | F100: 188.3854811 | G100: 188.3854811 | H100: 0 | I100: 5179.083064 | J100: 5179.083064 | K100: 0 | L100: 789.8913124 | M100: 789.8913124 | N100: 0 | O100: 0.2802070122 | P100: 0 | CS100: BCAG | CT100: 2045 | CU100: 7.952906473 | CV100: 6.55 | CW100: 6.99
B101: 2000 | C101: MCAG | D101: LDA | E101: ELECTRIC | F101: 1.837493131 | G101: 0 | H101: 1.837493131 | I101: 47.11251778 | J101: 0 | K101: 47.11251778 | L101: 8.412442751 | M101: 0 | N101: 8.412442751 | O101: 0 | P101: 0.0004597007074 | CS101: BCAG | CT101: 2046 | CU101: 7.952906473 | CV101: 6.55 | CW101: 6.99
B102: 2000 | C102: MCAG | D102: LDT1 | E102: ELECTRIC | F102: 0.3797933965 | G102: 0 | H102: 0.3797933965 | I102: 11.10801819 | J102: 0 | K102: 11.10801819 | L102: 1.803290777 | M102: 0 | N102: 1.803290777 | O102: 0 | P102: 0.0001260205557 | CS102: BCAG | CT102: 2047 | CU102: 7.952906473 | CV102: 6.55 | CW102: 6.99
B103: 2000 | C103: MCAG | D103: LDA | E103: GAS | F103: 74056.07846 | G103: 74056.07846 | H103: 0 | I103: 3083347.732 | J103: 3083347.732 | K103: 0 | L103: 341966.9655 | M103: 341966.9655 | N103: 0 | O103: 133.5920678 | P103: 0 | CS103: BCAG | CT103: 2048 | CU103: 7.952906473 | CV103: 6.55 | CW103: 6.99
B104: 2000 | C104: MCAG | D104: LDT1 | E104: GAS | F104: 19676.3157 | G104: 19676.3157 | H104: 0 | I104: 684748.3812 | J104: 684748.3812 | K104: 0 | L104: 87242.89895 | M104: 87242.89895 | N104: 0 | O104: 34.64176496 | P104: 0 | CS104: BCAG | CT104: 2049 | CU104: 7.952906473 | CV104: 6.55 | CW104: 6.99
B105: 2000 | C105: MCAG | D105: LDT2 | E105: GAS | F105: 23134.11941 | G105: 23134.11941 | H105: 0 | I105: 890568.5269 | J105: 890568.5269 | K105: 0 | L105: 107463.204 | M105: 107463.204 | N105: 0 | O105: 53.46381777 | P105: 0 | CS105: BCAG | CT105: 2050 | CU105: 7.952906473 | CV105: 6.55 | CW105: 6.99
B106: 2000 | C106: MCAG | D106: MDV | E106: GAS | F106: 14850.17291 | G106: 14850.17291 | H106: 0 | I106: 637626.8804 | J106: 637626.8804 | K106: 0 | L106: 71040.74887 | M106: 71040.74887 | N106: 0 | O106: 39.22469304 | P106: 0 | CS106: COFCG | CT106: 2000 | CU106: 7.64427714 | CV106: 6.55 | CW106: 6.99
B107: 2000 | C107: MCAG | D107: LDA | E107: HYDROGEN | F107: 0 | G107: 0 | H107: 0 | I107: 0 | J107: 0 | K107: 0 | L107: 0 | M107: 0 | N107: 0 | O107: 0 | P107: 0 | CS107: COFCG | CT107: 2001 | CU107: 8.025906655 | CV107: 6.55 | CW107: 6.99
B108: 2000 | C108: MCAG | D108: LDT1 | E108: HYDROGEN | F108: 0 | G108: 0 | H108: 0 | I108: 0 | J108: 0 | K108: 0 | L108: 0 | M108: 0 | N108: 0 | O108: 0 | P108: 0 | CS108: COFCG | CT108: 2002 | CU108: 8.092394591 | CV108: 6.55 | CW108: 6.99
B109: 2000 | C109: MCAG | D109: LDA | E109: PHEV | F109: 0 | G109: 0 | H109: 0 | I109: 0 | J109: 0 | K109: 0 | L109: 0 | M109: 0 | N109: 0 | O109: 0 | P109: 0 | CS109: COFCG | CT109: 2003 | CU109: 7.909165589 | CV109: 6.55 | CW109: 6.99
B110: 2000 | C110: MCAG | D110: LDT1 | E110: PHEV | F110: 0 | G110: 0 | H110: 0 | I110: 0 | J110: 0 | K110: 0 | L110: 0 | M110: 0 | N110: 0 | O110: 0 | P110: 0 | CS110: COFCG | CT110: 2004 | CU110: 8.060397138 | CV110: 6.55 | CW110: 6.99
B111: 2000 | C111: MCTC | D111: LDA | E111: DIESEL | F111: 420.3837637 | G111: 420.3837637 | H111: 0 | I111: 11791.0182 | J111: 11791.0182 | K111: 0 | L111: 1763.303211 | M111: 1763.303211 | N111: 0 | O111: 0.4048527418 | P111: 0 | CS111: COFCG | CT111: 2005 | CU111: 7.660781352 | CV111: 6.55 | CW111: 6.99
B112: 2000 | C112: MCTC | D112: LDT1 | E112: DIESEL | F112: 55.04585035 | G112: 55.04585035 | H112: 0 | I112: 1597.405487 | J112: 1597.405487 | K112: 0 | L112: 234.7017451 | M112: 234.7017451 | N112: 0 | O112: 0.0654661073 | P112: 0 | CS112: COFCG | CT112: 2006 | CU112: 7.320391614 | CV112: 6.55 | CW112: 6.99
B113: 2000 | C113: MCTC | D113: LDT2 | E113: DIESEL | F113: 1.704079585 | G113: 1.704079585 | H113: 0 | I113: 35.28760656 | J113: 35.28760656 | K113: 0 | L113: 6.489600295 | M113: 6.489600295 | N113: 0 | O113: 0.001714142061 | P113: 0 | CS113: COFCG | CT113: 2007 | CU113: 7.167226253 | CV113: 6.55 | CW113: 6.99
B114: 2000 | C114: MCTC | D114: MDV | E114: DIESEL | F114: 93.83128204 | G114: 93.83128204 | H114: 0 | I114: 2457.376667 | J114: 2457.376667 | K114: 0 | L114: 392.756112 | M114: 392.756112 | N114: 0 | O114: 0.1326538052 | P114: 0 | CS114: COFCG | CT114: 2008 | CU114: 6.718382782 | CV114: 6.55 | CW114: 6.99
B115: 2000 | C115: MCTC | D115: LDA | E115: ELECTRIC | F115: 1.381388083 | G115: 0 | H115: 1.381388083 | I115: 40.1058781 | J115: 0 | K115: 40.1058781 | L115: 6.543648199 | M115: 0 | N115: 6.543648199 | O115: 0 | P115: 0.0003913333738 | CS115: COFCG | CT115: 2009 | CU115: 6.512312739 | CV115: 6.55 | CW115: 6.99
B116: 2000 | C116: MCTC | D116: LDT1 | E116: ELECTRIC | F116: 0.626443433 | G116: 0 | H116: 0.626443433 | I116: 18.32192216 | J116: 0 | K116: 18.32192216 | L116: 2.974405757 | M116: 0 | N116: 2.974405757 | O116: 0 | P116: 0.0002078623542 | CS116: COFCG | CT116: 2010 | CU116: 6.445910965 | CV116: 6.55 | CW116: 6.99
B117: 2000 | C117: MCTC | D117: LDA | E117: GAS | F117: 50693.59062 | G117: 50693.59062 | H117: 0 | I117: 2000220.929 | J117: 2000220.929 | K117: 0 | L117: 234743.4968 | M117: 234743.4968 | N117: 0 | O117: 87.48197729 | P117: 0 | CS117: COFCG | CT117: 2011 | CU117: 6.382416572 | CV117: 6.55 | CW117: 6.99
B118: 2000 | C118: MCTC | D118: LDT1 | E118: GAS | F118: 14031.86676 | G118: 14031.86676 | H118: 0 | I118: 471124.1339 | J118: 471124.1339 | K118: 0 | L118: 62114.99218 | M118: 62114.99218 | N118: 0 | O118: 23.86982493 | P118: 0 | CS118: COFCG | CT118: 2012 | CU118: 6.298213431 | CV118: 6.55 | CW118: 6.99
B119: 2000 | C119: MCTC | D119: LDT2 | E119: GAS | F119: 17460.75696 | G119: 17460.75696 | H119: 0 | I119: 674013.8548 | J119: 674013.8548 | K119: 0 | L119: 81334.29029 | M119: 81334.29029 | N119: 0 | O119: 40.60742528 | P119: 0 | CS119: COFCG | CT119: 2013 | CU119: 6.749980966 | CV119: 6.55 | CW119: 6.99
B120: 2000 | C120: MCTC | D120: MDV | E120: GAS | F120: 10834.76634 | G120: 10834.76634 | H120: 0 | I120: 443189.5485 | J120: 443189.5485 | K120: 0 | L120: 51694.99077 | M120: 51694.99077 | N120: 0 | O120: 27.65934282 | P120: 0 | CS120: COFCG | CT120: 2014 | CU120: 6.696685781 | CV120: 6.55 | CW120: 6.99
B121: 2000 | C121: MCTC | D121: LDA | E121: HYDROGEN | F121: 0 | G121: 0 | H121: 0 | I121: 0 | J121: 0 | K121: 0 | L121: 0 | M121: 0 | N121: 0 | O121: 0 | P121: 0 | CS121: COFCG | CT121: 2015 | CU121: 6.727478916 | CV121: 6.55 | CW121: 6.99
B122: 2000 | C122: MCTC | D122: LDT1 | E122: HYDROGEN | F122: 0 | G122: 0 | H122: 0 | I122: 0 | J122: 0 | K122: 0 | L122: 0 | M122: 0 | N122: 0 | O122: 0 | P122: 0 | CS122: COFCG | CT122: 2016 | CU122: 6.796635312 | CV122: 6.55 | CW122: 6.99
B123: 2000 | C123: MCTC | D123: LDA | E123: PHEV | F123: 0 | G123: 0 | H123: 0 | I123: 0 | J123: 0 | K123: 0 | L123: 0 | M123: 0 | N123: 0 | O123: 0 | P123: 0 | CS123: COFCG | CT123: 2017 | CU123: 7.936531145 | CV123: 6.55 | CW123: 6.99
B124: 2000 | C124: MCTC | D124: LDT1 | E124: PHEV | F124: 0 | G124: 0 | H124: 0 | I124: 0 | J124: 0 | K124: 0 | L124: 0 | M124: 0 | N124: 0 | O124: 0 | P124: 0 | CS124: COFCG | CT124: 2018 | CU124: 7.936531145 | CV124: 6.55 | CW124: 6.99
B125: 2000 | C125: MTC | D125: LDA | E125: DIESEL | F125: 370.7023548 | G125: 370.7023548 | H125: 0 | I125: 10380.51476 | J125: 10380.51476 | K125: 0 | L125: 1556.127494 | M125: 1556.127494 | N125: 0 | O125: 0.413481864 | P125: 0 | CS125: COFCG | CT125: 2019 | CU125: 7.936531145 | CV125: 6.55 | CW125: 6.99
B126: 2000 | C126: MTC | D126: LDA | E126: DIESEL | F126: 381.722493 | G126: 381.722493 | H126: 0 | I126: 10406.53155 | J126: 10406.53155 | K126: 0 | L126: 1604.5512 | M126: 1604.5512 | N126: 0 | O126: 0.3878478679 | P126: 0 | CS126: COFCG | CT126: 2020 | CU126: 7.936531145 | CV126: 6.55 | CW126: 6.99
B127: 2000 | C127: MTC | D127: LDA | E127: DIESEL | F127: 4498.113906 | G127: 4498.113906 | H127: 0 | I127: 109873.5076 | J127: 109873.5076 | K127: 0 | L127: 18897.15706 | M127: 18897.15706 | N127: 0 | O127: 3.79367966 | P127: 0 | CS127: COFCG | CT127: 2021 | CU127: 7.936531145 | CV127: 6.55 | CW127: 6.99
B128: 2000 | C128: MTC | D128: LDA | E128: DIESEL | F128: 3157.165563 | G128: 3157.165563 | H128: 0 | I128: 81237.53123 | J128: 81237.53123 | K128: 0 | L128: 13313.23027 | M128: 13313.23027 | N128: 0 | O128: 2.786446932 | P128: 0 | CS128: COFCG | CT128: 2022 | CU128: 7.936531145 | CV128: 6.55 | CW128: 6.99
B129: 2000 | C129: MTC | D129: LDA | E129: DIESEL | F129: 1633.0008 | G129: 1633.0008 | H129: 0 | I129: 38057.02672 | J129: 38057.02672 | K129: 0 | L129: 6847.721615 | M129: 6847.721615 | N129: 0 | O129: 1.335207551 | P129: 0 | CS129: COFCG | CT129: 2023 | CU129: 7.936531145 | CV129: 6.55 | CW129: 6.99
B130: 2000 | C130: MTC | D130: LDA | E130: DIESEL | F130: 531.2485558 | G130: 531.2485558 | H130: 0 | I130: 13936.57428 | J130: 13936.57428 | K130: 0 | L130: 2232.306504 | M130: 2232.306504 | N130: 0 | O130: 0.4687129128 | P130: 0 | CS130: COFCG | CT130: 2024 | CU130: 7.936531145 | CV130: 6.55 | CW130: 6.99
B131: 2000 | C131: MTC | D131: LDA | E131: DIESEL | F131: 1273.866891 | G131: 1273.866891 | H131: 0 | I131: 28373.38042 | J131: 28373.38042 | K131: 0 | L131: 5361.863896 | M131: 5361.863896 | N131: 0 | O131: 1.046199634 | P131: 0 | CS131: COFCG | CT131: 2025 | CU131: 7.936531145 | CV131: 6.55 | CW131: 6.99
B132: 2000 | C132: MTC | D132: LDA | E132: DIESEL | F132: 2435.068102 | G132: 2435.068102 | H132: 0 | I132: 60178.90829 | J132: 60178.90829 | K132: 0 | L132: 10202.87544 | M132: 10202.87544 | N132: 0 | O132: 2.068449194 | P132: 0 | CS132: COFCG | CT132: 2026 | CU132: 7.936531145 | CV132: 6.55 | CW132: 6.99
B133: 2000 | C133: MTC | D133: LDA | E133: DIESEL | F133: 4793.938116 | G133: 4793.938116 | H133: 0 | I133: 129323.7213 | J133: 129323.7213 | K133: 0 | L133: 20176.24793 | M133: 20176.24793 | N133: 0 | O133: 4.358430673 | P133: 0 | CS133: COFCG | CT133: 2027 | CU133: 7.936531145 | CV133: 6.55 | CW133: 6.99
B134: 2000 | C134: MTC | D134: LDA | E134: DIESEL | F134: 768.7523583 | G134: 768.7523583 | H134: 0 | I134: 21343.08919 | J134: 21343.08919 | K134: 0 | L134: 3220.404609 | M134: 3220.404609 | N134: 0 | O134: 0.7593116394 | P134: 0 | CS134: COFCG | CT134: 2028 | CU134: 7.936531145 | CV134: 6.55 | CW134: 6.99
B135: 2000 | C135: MTC | D135: LDA | E135: DIESEL | F135: 1313.50618 | G135: 1313.50618 | H135: 0 | I135: 33888.6932 | J135: 33888.6932 | K135: 0 | L135: 5509.428643 | M135: 5509.428643 | N135: 0 | O135: 1.16502807 | P135: 0 | CS135: COFCG | CT135: 2029 | CU135: 7.936531145 | CV135: 6.55 | CW135: 6.99
B136: 2000 | C136: MTC | D136: LDT1 | E136: DIESEL | F136: 33.02734659 | G136: 33.02734659 | H136: 0 | I136: 938.9468754 | J136: 938.9468754 | K136: 0 | L136: 139.4087382 | M136: 139.4087382 | N136: 0 | O136: 0.04388777159 | P136: 0 | CS136: COFCG | CT136: 2030 | CU136: 7.936531145 | CV136: 6.55 | CW136: 6.99
B137: 2000 | C137: MTC | D137: LDT1 | E137: DIESEL | F137: 37.57859909 | G137: 37.57859909 | H137: 0 | I137: 980.3012078 | J137: 980.3012078 | K137: 0 | L137: 159.8067554 | M137: 159.8067554 | N137: 0 | O137: 0.04270065203 | P137: 0 | CS137: COFCG | CT137: 2031 | CU137: 7.936531145 | CV137: 6.55 | CW137: 6.99
B138: 2000 | C138: MTC | D138: LDT1 | E138: DIESEL | F138: 257.0350804 | G138: 257.0350804 | H138: 0 | I138: 6710.062571 | J138: 6710.062571 | K138: 0 | L138: 1080.300982 | M138: 1080.300982 | N138: 0 | O138: 0.2786205152 | P138: 0 | CS138: COFCG | CT138: 2032 | CU138: 7.936531145 | CV138: 6.55 | CW138: 6.99
B139: 2000 | C139: MTC | D139: LDT1 | E139: DIESEL | F139: 162.3880501 | G139: 162.3880501 | H139: 0 | I139: 4626.706748 | J139: 4626.706748 | K139: 0 | L139: 685.1779934 | M139: 685.1779934 | N139: 0 | O139: 0.1941136501 | P139: 0 | CS139: COFCG | CT139: 2033 | CU139: 7.936531145 | CV139: 6.55 | CW139: 6.99
B140: 2000 | C140: MTC | D140: LDT1 | E140: DIESEL | F140: 81.04168971 | G140: 81.04168971 | H140: 0 | I140: 2001.991776 | J140: 2001.991776 | K140: 0 | L140: 339.6706424 | M140: 339.6706424 | N140: 0 | O140: 0.08453230357 | P140: 0 | CS140: COFCG | CT140: 2034 | CU140: 7.936531145 | CV140: 6.55 | CW140: 6.99
B141: 2000 | C141: MTC | D141: LDT1 | E141: DIESEL | F141: 43.97036893 | G141: 43.97036893 | H141: 0 | I141: 1268.521927 | J141: 1268.521927 | K141: 0 | L141: 186.4971482 | M141: 186.4971482 | N141: 0 | O141: 0.05063330528 | P141: 0 | CS141: COFCG | CT141: 2035 | CU141: 7.936531145 | CV141: 6.55 | CW141: 6.99
B142: 2000 | C142: MTC | D142: LDT1 | E142: DIESEL | F142: 76.04295648 | G142: 76.04295648 | H142: 0 | I142: 2108.605415 | J142: 2108.605415 | K142: 0 | L142: 336.5762644 | M142: 336.5762644 | N142: 0 | O142: 0.09480657192 | P142: 0 | CS142: COFCG | CT142: 2036 | CU142: 7.936531145 | CV142: 6.55 | CW142: 6.99
B143: 2000 | C143: MTC | D143: LDT1 | E143: DIESEL | F143: 100.4151795 | G143: 100.4151795 | H143: 0 | I143: 2480.381092 | J143: 2480.381092 | K143: 0 | L143: 421.3962487 | M143: 421.3962487 | N143: 0 | O143: 0.1019462586 | P143: 0 | CS143: COFCG | CT143: 2037 | CU143: 7.936531145 | CV143: 6.55 | CW143: 6.99
B144: 2000 | C144: MTC | D144: LDT1 | E144: DIESEL | F144: 270.0691708 | G144: 270.0691708 | H144: 0 | I144: 7260.081068 | J144: 7260.081068 | K144: 0 | L144: 1143.69155 | M144: 1143.69155 | N144: 0 | O144: 0.2943477225 | P144: 0 | CS144: COFCG | CT144: 2038 | CU144: 7.936531145 | CV144: 6.55 | CW144: 6.99
B145: 2000 | C145: MTC | D145: LDT1 | E145: DIESEL | F145: 64.30628092 | G145: 64.30628092 | H145: 0 | I145: 1863.0828 | J145: 1863.0828 | K145: 0 | L145: 271.7337996 | M145: 271.7337996 | N145: 0 | O145: 0.07850275377 | P145: 0 | CS145: COFCG | CT145: 2039 | CU145: 7.936531145 | CV145: 6.55 | CW145: 6.99
B146: 2000 | C146: MTC | D146: LDT1 | E146: DIESEL | F146: 96.6359951 | G146: 96.6359951 | H146: 0 | I146: 2416.539908 | J146: 2416.539908 | K146: 0 | L146: 406.8279055 | M146: 406.8279055 | N146: 0 | O146: 0.09854538605 | P146: 0 | CS146: COFCG | CT146: 2040 | CU146: 7.936531145 | CV146: 6.55 | CW146: 6.99
B147: 2000 | C147: MTC | D147: LDT2 | E147: DIESEL | F147: 1.212176457 | G147: 1.212176457 | H147: 0 | I147: 32.19442396 | J147: 32.19442396 | K147: 0 | L147: 4.993799174 | M147: 4.993799174 | N147: 0 | O147: 0.001832140358 | P147: 0 | CS147: COFCG | CT147: 2041 | CU147: 7.936531145 | CV147: 6.55 | CW147: 6.99
B148: 2000 | C148: MTC | D148: LDT2 | E148: DIESEL | F148: 3.741418138 | G148: 3.741418138 | H148: 0 | I148: 92.38333548 | J148: 92.38333548 | K148: 0 | L148: 15.70895777 | M148: 15.70895777 | N148: 0 | O148: 0.004777468878 | P148: 0 | CS148: COFCG | CT148: 2042 | CU148: 7.936531145 | CV148: 6.55 | CW148: 6.99
B149: 2000 | C149: MTC | D149: LDT2 | E149: DIESEL | F149: 20.29224319 | G149: 20.29224319 | H149: 0 | I149: 548.3899771 | J149: 548.3899771 | K149: 0 | L149: 85.9963911 | M149: 85.9963911 | N149: 0 | O149: 0.02615366318 | P149: 0 | CS149: COFCG | CT149: 2043 | CU149: 7.936531145 | CV149: 6.55 | CW149: 6.99
B150: 2000 | C150: MTC | D150: LDT2 | E150: DIESEL | F150: 9.401413427 | G150: 9.401413427 | H150: 0 | I150: 251.8446876 | J150: 251.8446876 | K150: 0 | L150: 38.90255305 | M150: 38.90255305 | N150: 0 | O150: 0.01240662738 | P150: 0 | CS150: COFCG | CT150: 2044 | CU150: 7.936531145 | CV150: 6.55 | CW150: 6.99
B151: 2000 | C151: MTC | D151: LDT2 | E151: DIESEL | F151: 6.493528153 | G151: 6.493528153 | H151: 0 | I151: 167.1443993 | J151: 167.1443993 | K151: 0 | L151: 27.60111517 | M151: 27.60111517 | N151: 0 | O151: 0.008087450861 | P151: 0 | CS151: COFCG | CT151: 2045 | CU151: 7.936531145 | CV151: 6.55 | CW151: 6.99
B152: 2000 | C152: MTC | D152: LDT2 | E152: DIESEL | F152: 4.324954321 | G152: 4.324954321 | H152: 0 | I152: 121.872956 | J152: 121.872956 | K152: 0 | L152: 18.19301406 | M152: 18.19301406 | N152: 0 | O152: 0.00579500957 | P152: 0 | CS152: COFCG | CT152: 2046 | CU152: 7.936531145 | CV152: 6.55 | CW152: 6.99
B153: 2000 | C153: MTC | D153: LDT2 | E153: DIESEL | F153: 5.894802828 | G153: 5.894802828 | H153: 0 | I153: 148.2043683 | J153: 148.2043683 | K153: 0 | L153: 25.49455654 | M153: 25.49455654 | N153: 0 | O153: 0.007418010955 | P153: 0 | CS153: COFCG | CT153: 2047 | CU153: 7.936531145 | CV153: 6.55 | CW153: 6.99
B154: 2000 | C154: MTC | D154: LDT2 | E154: DIESEL | F154: 15.21442113 | G154: 15.21442113 | H154: 0 | I154: 410.9562115 | J154: 410.9562115 | K154: 0 | L154: 64.88595355 | M154: 64.88595355 | N154: 0 | O154: 0.01914487329 | P154: 0 | CS154: COFCG | CT154: 2048 | CU154: 7.936531145 | CV154: 6.55 | CW154: 6.99
B155: 2000 | C155: MTC | D155: LDT2 | E155: DIESEL | F155: 21.03342452 | G155: 21.03342452 | H155: 0 | I155: 577.0745914 | J155: 577.0745914 | K155: 0 | L155: 88.8711909 | M155: 88.8711909 | N155: 0 | O155: 0.02698895029 | P155: 0 | CS155: COFCG | CT155: 2049 | CU155: 7.936531145 | CV155: 6.55 | CW155: 6.99
B156: 2000 | C156: MTC | D156: LDT2 | E156: DIESEL | F156: 6.690184276 | G156: 6.690184276 | H156: 0 | I156: 171.7822195 | J156: 171.7822195 | K156: 0 | L156: 28.12111174 | M156: 28.12111174 | N156: 0 | O156: 0.008111929512 | P156: 0 | CS156: COFCG | CT156: 2050 | CU156: 7.936531145 | CV156: 6.55 | CW156: 6.99
B157: 2000 | C157: MTC | D157: MDV | E157: DIESEL | F157: 47.16809758 | G157: 47.16809758 | H157: 0 | I157: 1186.714815 | J157: 1186.714815 | K157: 0 | L157: 196.4579861 | M157: 196.4579861 | N157: 0 | O157: 0.07447526967 | P157: 0 | CS157: KCAG | CT157: 2000 | CU157: 7.643387237 | CV157: 6.55 | CW157: 6.99
B158: 2000 | C158: MTC | D158: MDV | E158: DIESEL | F158: 69.56477874 | G158: 69.56477874 | H158: 0 | I158: 1545.756331 | J158: 1545.756331 | K158: 0 | L158: 292.0881108 | M158: 292.0881108 | N158: 0 | O158: 0.09064892542 | P158: 0 | CS158: KCAG | CT158: 2001 | CU158: 8.024972324 | CV158: 6.55 | CW158: 6.99
B159: 2000 | C159: MTC | D159: MDV | E159: DIESEL | F159: 329.5073774 | G159: 329.5073774 | H159: 0 | I159: 8104.133872 | J159: 8104.133872 | K159: 0 | L159: 1377.213229 | M159: 1377.213229 | N159: 0 | O159: 0.441950555 | P159: 0 | CS159: KCAG | CT159: 2002 | CU159: 8.091452521 | CV159: 6.55 | CW159: 6.99
B160: 2000 | C160: MTC | D160: MDV | E160: DIESEL | F160: 252.9834886 | G160: 252.9834886 | H160: 0 | I160: 6888.792569 | J160: 6888.792569 | K160: 0 | L160: 1061.307955 | M160: 1061.307955 | N160: 0 | O160: 0.3729742496 | P160: 0 | CS160: KCAG | CT160: 2003 | CU160: 7.908244849 | CV160: 6.55 | CW160: 6.99
B161: 2000 | C161: MTC | D161: MDV | E161: DIESEL | F161: 75.69510723 | G161: 75.69510723 | H161: 0 | I161: 1829.361443 | J161: 1829.361443 | K161: 0 | L161: 316.1771082 | M161: 316.1771082 | N161: 0 | O161: 0.1007756346 | P161: 0 | CS161: KCAG | CT161: 2004 | CU161: 8.059458793 | CV161: 6.55 | CW161: 6.99
B162: 2000 | C162: MTC | D162: MDV | E162: DIESEL | F162: 58.38688334 | G162: 58.38688334 | H162: 0 | I162: 1538.100762 | J162: 1538.100762 | K162: 0 | L162: 246.3696678 | M162: 246.3696678 | N162: 0 | O162: 0.0813133981 | P162: 0 | CS162: KCAG | CT162: 2005 | CU162: 7.659889527 | CV162: 6.55 | CW162: 6.99
B163: 2000 | C163: MTC | D163: MDV | E163: DIESEL | F163: 42.44258036 | G163: 42.44258036 | H163: 0 | I163: 1104.473642 | J163: 1104.473642 | K163: 0 | L163: 179.9878009 | M163: 179.9878009 | N163: 0 | O163: 0.06305125125 | P163: 0 | CS163: KCAG | CT163: 2006 | CU163: 7.319539416 | CV163: 6.55 | CW163: 6.99
B164: 2000 | C164: MTC | D164: MDV | E164: DIESEL | F164: 102.6973426 | G164: 102.6973426 | H164: 0 | I164: 2435.024941 | J164: 2435.024941 | K164: 0 | L164: 429.0132498 | M164: 429.0132498 | N164: 0 | O164: 0.1314071046 | P164: 0 | CS164: KCAG | CT164: 2007 | CU164: 7.166391886 | CV164: 6.55 | CW164: 6.99
B165: 2000 | C165: MTC | D165: MDV | E165: DIESEL | F165: 295.3092803 | G165: 295.3092803 | H165: 0 | I165: 7826.643426 | J165: 7826.643426 | K165: 0 | L165: 1240.224578 | M165: 1240.224578 | N165: 0 | O165: 0.4147943126 | P165: 0 | CS165: KCAG | CT165: 2008 | CU165: 6.717600666 | CV165: 6.55 | CW165: 6.99
B166: 2000 | C166: MTC | D166: MDV | E166: DIESEL | F166: 98.40809657 | G166: 98.40809657 | H166: 0 | I166: 2427.406567 | J166: 2427.406567 | K166: 0 | L166: 412.3277129 | M166: 412.3277129 | N166: 0 | O166: 0.1349755413 | P166: 0 | CS166: KCAG | CT166: 2009 | CU166: 6.511554612 | CV166: 6.55 | CW166: 6.99
B167: 2000 | C167: MTC | D167: MDV | E167: DIESEL | F167: 160.5644226 | G167: 160.5644226 | H167: 0 | I167: 3915.795137 | J167: 3915.795137 | K167: 0 | L167: 673.5864929 | M167: 673.5864929 | N167: 0 | O167: 0.2119804191 | P167: 0 | CS167: KCAG | CT167: 2010 | CU167: 6.445160568 | CV167: 6.55 | CW167: 6.99
B168: 2000 | C168: MTC | D168: LDA | E168: ELECTRIC | F168: 0.4162853676 | G168: 0 | H168: 0.4162853676 | I168: 12.08602449 | J168: 0 | K168: 12.08602449 | L168: 1.971947659 | M168: 0 | N168: 1.971947659 | O168: 0 | P168: 0.0001179294648 | CS168: KCAG | CT168: 2011 | CU168: 6.381673568 | CV168: 6.55 | CW168: 6.99
B169: 2000 | C169: MTC | D169: LDA | E169: ELECTRIC | F169: 10.45464547 | G169: 0 | H169: 10.45464547 | I169: 352.5603161 | J169: 0 | K169: 352.5603161 | L169: 52.28299913 | M169: 0 | N169: 52.28299913 | O169: 0 | P169: 0.003440109643 | CS169: KCAG | CT169: 2012 | CU169: 6.297480229 | CV169: 6.55 | CW169: 6.99
B170: 2000 | C170: MTC | D170: LDA | E170: ELECTRIC | F170: 41.55078367 | G170: 0 | H170: 41.55078367 | I170: 1065.941482 | J170: 0 | K170: 1065.941482 | L170: 187.6921854 | M170: 0 | N170: 187.6921854 | O170: 0 | P170: 0.01040093114 | CS170: KCAG | CT170: 2013 | CU170: 6.749195172 | CV170: 6.55 | CW170: 6.99
B171: 2000 | C171: MTC | D171: LDA | E171: ELECTRIC | F171: 23.07619659 | G171: 0 | H171: 23.07619659 | I171: 624.0338852 | J171: 0 | K171: 624.0338852 | L171: 106.7899286 | M171: 0 | N171: 106.7899286 | O171: 0 | P171: 0.006089014808 | CS171: KCAG | CT171: 2014 | CU171: 6.695906191 | CV171: 6.55 | CW171: 6.99
B172: 2000 | C172: MTC | D172: LDA | E172: ELECTRIC | F172: 13.96829098 | G172: 0 | H172: 13.96829098 | I172: 387.5460982 | J172: 0 | K172: 387.5460982 | L172: 65.23929336 | M172: 0 | N172: 65.23929336 | O172: 0 | P172: 0.003781483645 | CS172: KCAG | CT172: 2015 | CU172: 6.726695741 | CV172: 6.55 | CW172: 6.99
B173: 2000 | C173: MTC | D173: LDA | E173: ELECTRIC | F173: 5.045780041 | G173: 0 | H173: 5.045780041 | I173: 131.951014 | J173: 0 | K173: 131.951014 | L173: 23.00779829 | M173: 0 | N173: 23.00779829 | O173: 0 | P173: 0.001287512902 | CS173: KCAG | CT173: 2016 | CU173: 6.795844087 | CV173: 6.55 | CW173: 6.99
B174: 2000 | C174: MTC | D174: LDA | E174: ELECTRIC | F174: 18.86336905 | G174: 0 | H174: 18.86336905 | I174: 617.6084511 | J174: 0 | K174: 617.6084511 | L174: 93.34175644 | M174: 0 | N174: 93.34175644 | O174: 0 | P174: 0.006026318592 | CS174: KCAG | CT174: 2017 | CU174: 7.935607219 | CV174: 6.55 | CW174: 6.99
B175: 2000 | C175: MTC | D175: LDA | E175: ELECTRIC | F175: 18.25730536 | G175: 0 | H175: 18.25730536 | I175: 535.2604317 | J175: 0 | K175: 535.2604317 | L175: 86.77996199 | M175: 0 | N175: 86.77996199 | O175: 0 | P175: 0.005222807242 | CS175: KCAG | CT175: 2018 | CU175: 7.935607219 | CV175: 6.55 | CW175: 6.99
B176: 2000 | C176: MTC | D176: LDA | E176: ELECTRIC | F176: 74.87899129 | G176: 0 | H176: 74.87899129 | I176: 2156.876398 | J176: 0 | K176: 2156.876398 | L176: 352.5682185 | M176: 0 | N176: 352.5682185 | O176: 0 | P176: 0.02104573588 | CS176: KCAG | CT176: 2019 | CU176: 7.935607219 | CV176: 6.55 | CW176: 6.99
B177: 2000 | C177: MTC | D177: LDA | E177: ELECTRIC | F177: 3.897350359 | G177: 0 | H177: 3.897350359 | I177: 110.4680934 | J177: 0 | K177: 110.4680934 | L177: 18.38519495 | M177: 0 | N177: 18.38519495 | O177: 0 | P177: 0.00107789316 | CS177: KCAG | CT177: 2020 | CU177: 7.935607219 | CV177: 6.55 | CW177: 6.99
B178: 2000 | C178: MTC | D178: LDA | E178: ELECTRIC | F178: 9.66359951 | G178: 0 | H178: 9.66359951 | I178: 249.7998384 | J178: 0 | K178: 249.7998384 | L178: 44.31969812 | M178: 0 | N178: 44.31969812 | O178: 0 | P178: 0.002437423594 | CS178: KCAG | CT178: 2021 | CU178: 7.935607219 | CV178: 6.55 | CW178: 6.99
B179: 2000 | C179: MTC | D179: LDT1 | E179: ELECTRIC | F179: 1.188780574 | G179: 0 | H179: 1.188780574 | I179: 35.66379987 | J179: 0 | K179: 35.66379987 | L179: 5.742605936 | M179: 0 | N179: 5.742605936 | O179: 0 | P179: 0.0004046060962 | CS179: KCAG | CT179: 2022 | CU179: 7.935607219 | CV179: 6.55 | CW179: 6.99
B180: 2000 | C180: MTC | D180: LDT1 | E180: ELECTRIC | F180: 3.659664807 | G180: 0 | H180: 3.659664807 | I180: 125.3247171 | J180: 0 | K180: 125.3247171 | L180: 18.41569362 | M180: 0 | N180: 18.41569362 | O180: 0 | P180: 0.001421809923 | CS180: KCAG | CT180: 2023 | CU180: 7.935607219 | CV180: 6.55 | CW180: 6.99
B181: 2000 | C181: MTC | D181: LDT1 | E181: ELECTRIC | F181: 14.49445942 | G181: 0 | H181: 14.49445942 | I181: 393.6190667 | J181: 0 | K181: 393.6190667 | L181: 66.92236858 | M181: 0 | N181: 66.92236858 | O181: 0 | P181: 0.004465611476 | CS181: KCAG | CT181: 2024 | CU181: 7.935607219 | CV181: 6.55 | CW181: 6.99
B182: 2000 | C182: MTC | D182: LDT1 | E182: ELECTRIC | F182: 7.692065531 | G182: 0 | H182: 7.692065531 | I182: 246.9502764 | J182: 0 | K182: 246.9502764 | L182: 37.62049939 | M182: 0 | N182: 37.62049939 | O182: 0 | P182: 0.002801652872 | CS182: KCAG | CT182: 2025 | CU182: 7.935607219 | CV182: 6.55 | CW182: 6.99
B183: 2000 | C183: MTC | D183: LDT1 | E183: ELECTRIC | F183: 1.439108699 | G183: 0 | H183: 1.439108699 | I183: 50.30184462 | J183: 0 | K183: 50.30184462 | L183: 7.274924787 | M183: 0 | N183: 7.274924787 | O183: 0 | P183: 0.0005706748316 | CS183: KCAG | CT183: 2026 | CU183: 7.935607219 | CV183: 6.55 | CW183: 6.99
B184: 2000 | C184: MTC | D184: LDT1 | E184: ELECTRIC | F184: 0.7208257202 | G184: 0 | H184: 0.7208257202 | I184: 18.58888159 | J184: 0 | K184: 18.58888159 | L184: 3.328124433 | M184: 0 | N184: 3.328124433 | O184: 0 | P184: 0.0002108910111 | CS184: KCAG | CT184: 2027 | CU184: 7.935607219 | CV184: 6.55 | CW184: 6.99
B185: 2000 | C185: MTC | D185: LDT1 | E185: ELECTRIC | F185: 10.02116481 | G185: 0 | H185: 10.02116481 | I185: 320.9306678 | J185: 0 | K185: 320.9306678 | L185: 49.27436799 | M185: 0 | N185: 49.27436799 | O185: 0 | P185: 0.003640961007 | CS185: KCAG | CT185: 2028 | CU185: 7.935607219 | CV185: 6.55 | CW185: 6.99
B186: 2000 | C186: MTC | D186: LDT1 | E186: ELECTRIC | F186: 6.846489508 | G186: 0 | H186: 6.846489508 | I186: 226.1956449 | J186: 0 | K186: 226.1956449 | L186: 34.00792072 | M186: 0 | N186: 34.00792072 | O186: 0 | P186: 0.00256619141 | CS186: KCAG | CT186: 2029 | CU186: 7.935607219 | CV186: 6.55 | CW186: 6.99
B187: 2000 | C187: MTC | D187: LDT1 | E187: ELECTRIC | F187: 18.50941358 | G187: 0 | H187: 18.50941358 | I187: 426.1067867 | J187: 0 | K187: 426.1067867 | L187: 81.02539543 | M187: 0 | N187: 81.02539543 | O187: 0 | P187: 0.004834184921 | CS187: KCAG | CT187: 2030 | CU187: 7.935607219 | CV187: 6.55 | CW187: 6.99
B188: 2000 | C188: MTC | D188: LDT1 | E188: ELECTRIC | F188: 0.9743375898 | G188: 0 | H188: 0.9743375898 | I188: 27.19670983 | J188: 0 | K188: 27.19670983 | L188: 4.610253687 | M188: 0 | N188: 4.610253687 | O188: 0 | P188: 0.0003085468917 | CS188: KCAG | CT188: 2031 | CU188: 7.935607219 | CV188: 6.55 | CW188: 6.99
B189: 2000 | C189: MTC | D189: LDT1 | E189: ELECTRIC | F189: 3.716769042 | G189: 0 | H189: 3.716769042 | I189: 99.03566569 | J189: 0 | K189: 99.03566569 | L189: 17.03293413 | M189: 0 | N189: 17.03293413 | O189: 0 | P189: 0.001123560423 | CS189: KCAG | CT189: 2032 | CU189: 7.935607219 | CV189: 6.55 | CW189: 6.99
B190: 2000 | C190: MTC | D190: LDA | E190: GAS | F190: 26472.82259 | G190: 26472.82259 | H190: 0 | I190: 959232.3986 | J190: 959232.3986 | K190: 0 | L190: 121088.5494 | M190: 121088.5494 | N190: 0 | O190: 45.714552 | P190: 0 | CS190: KCAG | CT190: 2033 | CU190: 7.935607219 | CV190: 6.55 | CW190: 6.99
B191: 2000 | C191: MTC | D191: LDA | E191: GAS | F191: 51244.98692 | G191: 51244.98692 | H191: 0 | I191: 2040410.432 | J191: 2040410.432 | K191: 0 | L191: 239850.1547 | M191: 239850.1547 | N191: 0 | O191: 90.15093085 | P191: 0 | CS191: KCAG | CT191: 2034 | CU191: 7.935607219 | CV191: 6.55 | CW191: 6.99
B192: 2000 | C192: MTC | D192: LDA | E192: GAS | F192: 592617.5689 | G192: 592617.5689 | H192: 0 | I192: 22224251.64 | J192: 22224251.64 | K192: 0 | L192: 2766827.726 | M192: 2766827.726 | N192: 0 | O192: 926.4692492 | P192: 0 | CS192: KCAG | CT192: 2035 | CU192: 7.935607219 | CV192: 6.55 | CW192: 6.99
B193: 2000 | C193: MTC | D193: LDA | E193: GAS | F193: 346117.3087 | G193: 346117.3087 | H193: 0 | I193: 13253533.43 | J193: 13253533.43 | K193: 0 | L193: 1619912.253 | M193: 1619912.253 | N193: 0 | O193: 548.2604585 | P193: 0 | CS193: KCAG | CT193: 2036 | CU193: 7.935607219 | CV193: 6.55 | CW193: 6.99
B194: 2000 | C194: MTC | D194: LDA | E194: GAS | F194: 134514.911 | G194: 134514.911 | H194: 0 | I194: 4582787.444 | J194: 4582787.444 | K194: 0 | L194: 627472.1007 | M194: 627472.1007 | N194: 0 | O194: 191.8010146 | P194: 0 | CS194: KCAG | CT194: 2037 | CU194: 7.935607219 | CV194: 6.55 | CW194: 6.99
B195: 2000 | C195: MTC | D195: LDA | E195: GAS | F195: 45034.3077 | G195: 45034.3077 | H195: 0 | I195: 1747806.587 | J195: 1747806.587 | K195: 0 | L195: 208041.9206 | M195: 208041.9206 | N195: 0 | O195: 72.25726034 | P195: 0 | CS195: KCAG | CT195: 2038 | CU195: 7.935607219 | CV195: 6.55 | CW195: 6.99
B196: 2000 | C196: MTC | D196: LDA | E196: GAS | F196: 165187.1122 | G196: 165187.1122 | H196: 0 | I196: 6056552.53 | J196: 6056552.53 | K196: 0 | L196: 774272.0538 | M196: 774272.0538 | N196: 0 | O196: 262.771284 | P196: 0 | CS196: KCAG | CT196: 2039 | CU196: 7.935607219 | CV196: 6.55 | CW196: 6.99
B197: 2000 | C197: MTC | D197: LDA | E197: GAS | F197: 291490.8123 | G197: 291490.8123 | H197: 0 | I197: 11125002.75 | J197: 11125002.75 | K197: 0 | L197: 1385875.124 | M197: 1385875.124 | N197: 0 | O197: 454.8285428 | P197: 0 | CS197: KCAG | CT197: 2040 | CU197: 7.935607219 | CV197: 6.55 | CW197: 6.99
B198: 2000 | C198: MTC | D198: LDA | E198: GAS | F198: 645059.7939 | G198: 645059.7939 | H198: 0 | I198: 25249927.36 | J198: 25249927.36 | K198: 0 | L198: 3031618.413 | M198: 3031618.413 | N198: 0 | O198: 1037.128453 | P198: 0 | CS198: KCAG | CT198: 2041 | CU198: 7.935607219 | CV198: 6.55 | CW198: 6.99
B199: 2000 | C199: MTC | D199: LDA | E199: GAS | F199: 97400.6315 | G199: 97400.6315 | H199: 0 | I199: 3992255.168 | J199: 3992255.168 | K199: 0 | L199: 454309.4028 | M199: 454309.4028 | N199: 0 | O199: 168.2238139 | P199: 0 | CS199: KCAG | CT199: 2042 | CU199: 7.935607219 | CV199: 6.55 | CW199: 6.99
B200: 2000 | C200: MTC | D200: LDA | E200: GAS | F200: 124296.9337 | G200: 124296.9337 | H200: 0 | I200: 4462713.092 | J200: 4462713.092 | K200: 0 | L200: 574435.5884 | M200: 574435.5884 | N200: 0 | O200: 186.219345 | P200: 0 | CS200: KCAG | CT200: 2043 | CU200: 7.935607219 | CV200: 6.55 | CW200: 6.99
... 925 more rows

Sheet Report Sheet
E1: Auto Operation Cost Calculator Report Sheet
E3: Calendar Year | F3: Technology | G3: Fuel Cost | H3: Non-Fuel Cost | I3: VMT | J3: Calculated AOC
F4: Gasoline
F5: Diesel
F6: Electric
F7: Hydrogen
F9: Gasoline
F10: Diesel
F11: Electric
F12: Hydrogen
F14: Gasoline
F15: Diesel
F16: Electric
F17: Hydrogen
F19: Gasoline
F20: Diesel
F21: Electric
F22: Hydrogen
F24: Gasoline
F25: Diesel
F26: Electric
F27: Hydrogen
E65: Calendar Year | F65: Technology | G65: Fuel Cost | H65: Non-Fuel Cost | I65: VMT | J65: Calculated AOC
E66: =Calc!AH5 -> 2025 | F66: Gasoline | G66: =Calc!AD33 -> 3.897893478 | H66: =Calc!AD34 -> 7.935138819 | I66: =Calc!AD36 -> 0 | J66: =Calc!AI19 -> N/A
F67: Diesel | G67: =Calc!AG33 -> 3.775340329 | H67: =Calc!AG34 -> 7.935138819 | I67: =Calc!AG36 -> 0 | L67: =COUNTA(E4,E9,E14,E19,E24) -> 0
F68: Electric | G68: =Calc!AJ33 -> 6.572957103 | H68: =Calc!AJ34 -> 6.55 | I68: =Calc!AJ36 -> 0
F69: Hydrogen | G69: =Calc!AM33 -> 12.56248485 | H69: =Calc!AM34 -> 7.935138819 | I69: =Calc!AM35 -> 0
G115: 4.157315641
